Workbook

Sheet 封面
A1: 2022年部门预算公开表
D4: 单位编码： | E4: 420
D5: 单位名称： | E5: 岳阳县畜牧水产发展服务中心(汇总）

Sheet 目录
B1: 部门预算公开表
B3: 一、部门预算报表
B4: 1 | C4: 收支总表
B5: 2 | C5: 收入总表
B6: 3 | C6: 支出总表
B7: 4 | C7: 支出预算分类汇总表（按政府预算经济分类）
B8: 5 | C8: 支出预算分类汇总表（按部门预算经济分类）
B9: 6 | C9: 财政拨款收支总表
B10: 7 | C10: 一般公共预算支出表
B11: 8 | C11: 一般公共预算基本支出表
B12: 9 | C12: 一般公共预算基本支出表--人员经费(工资福利支出)(按政府预算经济分类)
B13: 10 | C13: 一般公共预算基本支出表--人员经费(工资福利支出)(按部门预算经济分类)
B14: 11 | C14: 一般公共预算基本支出表--人员经费(对个人和家庭的补助)(按政府预算经济分类)
B15: 12 | C15: 一般公共预算基本支出表--人员经费(对个人和家庭的补助)（按部门预算经济分类）
B16: 13 | C16: 一般公共预算基本支出表--公用经费(商品和服务支出)（按政府预算经济分类）
B17: 14 | C17: 一般公共预算基本支出表--公用经费(商品和服务支出)(按部门预算经济分类)
B18: 15 | C18: 一般公共预算“三公”经费支出表
B19: 16 | C19: 政府性基金预算支出表
B20: 17 | C20: 政府性基金预算支出分类汇总表（按政府预算经济分类）
B21: 18 | C21: 政府性基金预算支出分类汇总表（按部门预算经济分类）
B22: 19 | C22: 国有资本经营预算表
B23: 20 | C23: 财政专户管理资金预算支出表
B24: 21 | C24: 专项资金预算汇总表
B25: 22 | C25: 其他项目支出绩效目标表
B26: 23 | C26: 部门整体支出绩效目标表

Sheet 1收支总表
A2: 收支总表
A3: 单位：420-岳阳县畜牧水产发展服务中心(汇总） | G3: 金额单位：万元
A4: 收入 | C4: 支出
A5: 项目 | B5: 预算数 | C5: 项目（按功能分类） | D5: 预算数 | E5: 项目（按部门预算经济分类） | F5: 预算数 | G5: 项目（按政府预算经济分类） | H5: 预算数
A6: 一、一般公共预算拨款收入 | B6: =398.9441+445.76+105.4 -> 950.10 | C6: （一）一般公共服务支出 | D6: 3.79 | E6: 一、基本支出 | F6: =352.76+182.9441 -> 535.70 | G6: 一、机关工资福利支出 | H6: 277.22
A7: 经费拨款 | B7: =398.9441+445.76+105.4 -> 950.10 | C7: （二）外交支出 | E7: 工资福利支出 | F7: =173.7641+334.44 -> 508.20 | G7: 二、机关商品和服务支出 | H7: 15.12
A8: 纳入一般公共预算管理的非税收入拨款 | C8: （三）国防支出 | E8: 商品和服务支出 | F8: =18.32+9.18 -> 27.50 | G8: 三、机关资本性支出（一）
A9: 行政事业性收费收入 | C9: （四）公共安全支出 | E9: 对个人和家庭的补助 | G9: 四、机关资本性支出（二）
A10: 专项收入 | C10: （五）教育支出 | E10: 二、项目支出 | F10: =216+93+105.4 -> 414.40 | G10: 五、对事业单位经常性补助 | H10: =60.413+182.9441 -> 243.36
A11: 国有资本经营收入 | C11: （六）科学技术支出 | E11: 按项目管理的工资福利支出 | G11: 六、对事业单位资本性补助
A12: 国有资源（资产）有偿使用收入 | C12: （七）文化旅游体育与传媒支出 | E12: 按项目管理的商品和服务支出 | G12: 七、对企业补助
A13: 罚没收入 | C13: （八）社会保障和就业支出 | D13: =17.33388+36.59 -> 53.92 | E13: 按项目管理的对个人和家庭的补助 | G13: 八、对企业资本性支出
A14: 捐赠收入 | C14: （九）社会保险基金支出 | E14: 债务利息及费用支出 | G14: 九、对个人和家庭的补助
A15: 政府住房基金收入 | C15: （十）卫生健康支出 | D15: =8.66694+10.198 -> 18.86 | E15: 资本性支出（基本建设） | G15: 十、对社会保障基金补助
A16: 其他纳入一般公共预算管理的非税收入 | C16: （十一）节能环保支出 | E16: 资本性支出 | G16: 十一、债务利息及费用支出
A17: 一般债券 | C17: （十二）城乡社区支出 | E17: 对企业补助（基本建设） | G17: 十二、债务还本支出
A18: 外国政府和国际组织贷款 | C18: （十三）农林水支出 | D18: =360.7076+371.372+105.4 -> 837.48 | E18: 对企业补助 | G18: 十三、转移性支出
A19: 外国政府和国际组织捐赠 | C19: （十四）交通运输支出 | E19: 对社会保障基金补助 | G19: 十四、其他支出 | H19: =216+93+105.4 -> 414.40
A20: 二、政府性基金预算拨款收入 | C20: （十五）资源勘探工业信息等支出 | E20: 其他支出 | F20: =216+93+105.4 -> 414.40
A21: 三、国有资本经营预算拨款收入 | C21: （十六）商业服务业等支出 | E21: 三、事业单位经营服务支出
A22: 四、社会保障基金预算资金 | C22: （十七）金融支出
A23: 五、财政专户管理资金收入 | C23: （十八）援助其他地区支出
A24: 六、上级财政补助收入 | C24: （十九）自然资源海洋气象等支出
A25: 一般公共预算补助 | C25: （二十）住房保障支出 | D25: =12.23568+23.803 -> 36.04
A26: 政府性基金补助 | C26: （二十一）粮油物资储备支出
A27: 国有资本经营预算补助 | C27: （二十二）国有资本经营预算支出
A28: 七、事业收入 | C28: （二十三）灾害防治及应急管理支出
A29: 八、事业单位经营收入 | C29: （二十四）预备费
A30: 九、上级单位补助收入 | C30: （二十五）其他支出
A31: 十、附属单位上缴收入 | C31: （二十六）转移性支出
A32: 十一、其他收入 | C32: （二十七）债务还本支出
C33: （二十八）债务付息支出
C34: （二十九）债务发行费用支出
C35: （三十）抗疫特别国债安排的支出
A37: 本 年 收 入 合 计 | B37: =398.9441+445.76+105.4 -> 950.10 | C37: 本 年 支 出 合 计 | D37: =398.9441+445.76+105.4 -> 950.10 | E37: 本 年 支 出 合 计 | F37: =398.9441+445.76+105.4 -> 950.10 | G37: 本 年 支 出 合 计 | H37: =398.9441+445.76+105.4 -> 950.10
A38: 上年结转结余 | C38: 年终结转结余 | E38: 年终结转结余 | G38: 年终结转结余
A40: 收 入 总 计 | B40: =398.9441+445.76+105.4 -> 950.10 | C40: 支 出 总 计 | D40: =398.9441+445.76+105.4 -> 950.10 | E40: 支 出 总 计 | F40: =398.9441+445.76+105.4 -> 950.10 | G40: 支 出 总 计 | H40: =398.9441+445.76+105.4 -> 950.10

Sheet 2收入总表
A2: 收入总表
A3: 单位：420-岳阳县畜牧水产发展服务中心(汇总） | X3: 金额单位：万元
A4: 部门（单位）代码 | B4: 部门（单位）名称 | C4: 合计 | D4: 本年收入 | S4: 上年结转结余
D5: 小计 | E5: 一般公共预算 | F5: 政府性基金预算 | G5: 国有资本经营预算 | H5: 社会保险基金预算资金 | I5: 财政专户管理资金 | J5: 上级财政补助收入 | N5: 事业收入 | O5: 事业单位经营收入 | P5: 上级单位补助收入 | Q5: 附属单位上缴收入 | R5: 其他收入 | S5: 小计 | T5: 一般公共预算 | U5: 政府性基金预算 | V5: 国有资本经营预算 | W5: 社会保险基金预算资金 | X5: 财政专户管理资金 | Y5: 单位资金
J6: 一般公共预算补助 | K6: 政府性基金补助 | L6: 国有资本经营预算补助 | M6: 社会保险基金预算资金
B7: 合计 | C7: 950.10 | D7: 950.10 | E7: 950.10
A8: 420 | B8: 岳阳县畜牧水产发展服务中心 | C8: 950.10 | D8: 950.10 | E8: 950.10
A9: 420001 | B9: 岳阳县畜牧水产发展服务中心 | C9: 398.94 | D9: 398.94 | E9: 398.94
A10: 420002 | B10: 岳阳县动物疫病预防控制中心 | C10: 50.52 | D10: 50.52 | E10: 50.52
A11: 420003 | B11: 岳阳县动物卫生监督所 | C11: 113.13 | D11: 113.13 | E11: 113.13
A12: 420004 | B12: 中洲渔场 | C12: 105.40 | D12: 105.40 | E12: 105.40
A13: 420005 | B13: 岳阳县渔政监督管理站 | C13: 60.41 | D13: 60.41 | E13: 60.41
A14: 420006 | B14: 岳阳县畜禽良种繁殖场 | C14: 48.00 | D14: 48.00 | E14: 48.00
A15: 420007 | B15: 岳阳县养殖技术推广站 | C15: 97.64 | D15: 97.64 | E15: 97.64
A16: 420008 | B16: 岳阳县畜禽水产品质量安全检验检测中心 | C16: 76.06 | D16: 76.06 | E16: 76.06

Sheet 3支出总表
A2: 支出总表
A3: 单位：420-岳阳县畜牧水产发展服务中心(汇总） | K3: 金额单位：万元
A4: 功能科目 | D4: 科目编码 | E4: 科目名称 | F4: 合计 | G4: 基本支出 | H4: 项目支出 | I4: 事业单位经营支出 | J4: 上缴上级支出 | K4: 对附属单位补助支出
A5: 类 | B5: 款 | C5: 项
D6: 合计 | F6: =F7 -> 950.10 | G6: =G7 -> 535.70 | H6: 414.40
D7: 420 | E7: 岳阳县畜牧水产发展服务中心 | F7: =G7+H7 -> 950.10 | G7: =G8+G23+G38+G57+G73+G88 -> 535.70 | H7: 414.40
D8: 420001 | E8: 岳阳县畜牧水产发展服务中心 | F8: 398.94 | G8: 182.94 | H8: 216.00
A9: 208 | E9: 社会保障和就业支出 | F9: =F10+F12 -> 18.35 | G9: =G10+G12 -> 18.35
A10: 208 | B10: 05 | E10: 行政事业单位养老支出 | F10: =F11+F13 -> 17.33 | G10: =G11+G13 -> 17.33
A11: 208 | B11: 05 | C11: 05 | D11: 2080505 | E11: 机关事业单位基本养老保险缴费支出 | F11: 16.31 | G11: 16.31
A12: 208 | B12: 99 | E12: 其他社会保障和就业支出 | F12: 1.02 | G12: 1.02
A13: 208 | B13: 99 | C13: 99 | D13: 2089999 | E13: 其他社会保障和就业支出 | F13: 1.02 | G13: 1.02 | M13: =G9+G24+G42+G58+G74+G89 -> 54.944592
A14: 210 | E14: 卫生健康支出 | F14: 8.67 | G14: 8.67
A15: 210 | B15: 11 | E15: 行政事业单位医疗 | F15: 8.67 | G15: 8.67
A16: 210 | B16: 11 | C16: 01 | D16: 2101101 | E16: 行政单位医疗 | F16: 8.67 | G16: 8.67
A17: 213 | E17: 农林水支出 | F17: 360.71 | G17: 144.71 | H17: 216.00
A18: 213 | B18: 01 | E18: 农业农村 | F18: 360.71 | G18: 144.71 | H18: 216.00
A19: 213 | B19: 01 | C19: 01 | D19: 2130101 | E19: 行政运行 | F19: 360.71 | G19: 144.71 | H19: 216.00
A20: 221 | E20: 住房保障支出 | F20: 12.24 | G20: 12.24
A21: 221 | B21: 02 | E21: 住房改革支出 | F21: 12.24 | G21: 12.24
A22: 221 | B22: 02 | C22: 01 | D22: 2210201 | E22: 住房公积金 | F22: 12.24 | G22: 12.24
D23: 420002 | E23: 岳阳县动物疫病预防控制中心 | F23: 50.52 | G23: 50.52
A24: 208 | E24: 社会保障和就业支出 | F24: =F25+F27 -> 5.02 | G24: =G25+G27 -> 5.02
A25: 208 | B25: 05 | E25: 行政事业单位养老支出 | F25: 4.73 | G25: 4.73
A26: 208 | B26: 05 | C26: 05 | D26: 2080505 | E26: 机关事业单位基本养老保险缴费支出 | F26: 4.73 | G26: 4.73
A27: 208 | B27: 99 | E27: 其他社会保障和就业支出 | F27: 0.30 | G27: 0.30
A28: 208 | B28: 99 | C28: 99 | D28: 2089999 | E28: 其他社会保障和就业支出 | F28: 0.30 | G28: 0.30
A29: 210 | E29: 卫生健康支出 | F29: 2.51 | G29: 2.51
A30: 210 | B30: 11 | E30: 行政事业单位医疗 | F30: 2.51 | G30: 2.51
A31: 210 | B31: 11 | C31: 01 | D31: 2101101 | E31: 行政单位医疗 | F31: 2.51 | G31: 2.51
A32: 213 | E32: 农林水支出 | F32: 39.43 | G32: 39.43
A33: 213 | B33: 01 | E33: 农业农村 | F33: 39.43 | G33: 39.43
A34: 213 | B34: 01 | C34: 08 | D34: 2130108 | E34: 病虫害控制 | F34: 39.43 | G34: 39.43
A35: 221 | E35: 住房保障支出 | F35: 3.55 | G35: 3.55
A36: 221 | B36: 02 | E36: 住房改革支出 | F36: 3.55 | G36: 3.55
A37: 221 | B37: 02 | C37: 01 | D37: 2210201 | E37: 住房公积金 | F37: 3.55 | G37: 3.55
D38: 420003 | E38: 岳阳县动物卫生监督所 | F38: 113.13 | G38: 78.13 | H38: 35.00
A39: 201 | E39: 一般公共服务支出 | F39: 3.79 | G39: 3.79
A40: 201 | B40: 01 | E40: 人大事务 | F40: 3.79 | G40: 3.79
A41: 201 | B41: 01 | C41: 01 | D41: 2010101 | E41: 行政运行 | F41: 3.79 | G41: 3.79
A42: 208 | E42: 社会保障和就业支出 | F42: =F43+F45 -> 7.59 | G42: =G43+G45 -> 7.59
A43: 208 | B43: 05 | E43: 行政事业单位养老支出 | F43: 7.14 | G43: 7.14
A44: 208 | B44: 05 | C44: 05 | D44: 2080505 | E44: 机关事业单位基本养老保险缴费支出 | F44: 7.14 | G44: 7.14
A45: 208 | B45: 99 | E45: 其他社会保障和就业支出 | F45: 0.45 | G45: 0.45
A46: 208 | B46: 99 | C46: 99 | D46: 2089999 | E46: 其他社会保障和就业支出 | F46: 0.45 | G46: 0.45
A47: 213 | E47: 农林水支出 | F47: 96.39 | G47: 61.39 | H47: 35.00
A48: 213 | B48: 01 | E48: 农业农村 | F48: 96.39 | G48: 61.39 | H48: 35.00
A49: 213 | B49: 01 | C49: 08 | D49: 2130108 | E49: 病虫害控制 | F49: 96.39 | G49: 61.39 | H49: 35.00
A50: 221 | E50: 住房保障支出 | F50: 5.35 | G50: 5.35
A51: 221 | B51: 02 | E51: 住房改革支出 | F51: 5.35 | G51: 5.35
A52: 221 | B52: 02 | C52: 01 | D52: 2210201 | E52: 住房公积金 | F52: 5.35 | G52: 5.35
D53: 420004 | E53: 中洲渔场 | F53: 105.40 | H53: 105.40
A54: 213 | E54: 农林水支出 | F54: 105.40 | H54: 105.40
A55: 213 | B55: 01 | E55: 农业农村 | F55: 105.40 | H55: 105.40
A56: 213 | B56: 01 | C56: 99 | D56: 2130199 | E56: 其他农业农村支出 | F56: 105.40 | H56: 105.40
D57: 420005 | E57: 岳阳县渔政监督管理站 | F57: 60.41 | G57: 60.41
A58: 208 | E58: 社会保障和就业支出 | F58: =F59+F61 -> 8.61 | G58: =G59+G61 -> 8.61
A59: 208 | B59: 05 | E59: 行政事业单位养老支出 | F59: 8.27 | G59: 8.27
A60: 208 | B60: 05 | C60: 05 | D60: 2080505 | E60: 机关事业单位基本养老保险缴费支出 | F60: 8.27 | G60: 8.27
A61: 208 | B61: 99 | E61: 其他社会保障和就业支出 | F61: 0.34 | G61: 0.34
A62: 208 | B62: 99 | C62: 99 | D62: 2089999 | E62: 其他社会保障和就业支出 | F62: 0.34 | G62: 0.34
A63: 213 | E63: 农林水支出 | F63: 47.75 | G63: 47.75
A64: 213 | B64: 01 | E64: 农业农村 | F64: 47.75 | G64: 47.75
A65: 213 | B65: 01 | C65: 10 | D65: 2130110 | E65: 执法监管 | F65: 47.75 | G65: 47.75
A66: 221 | E66: 住房保障支出 | F66: 4.05 | G66: 4.05
A67: 221 | B67: 02 | E67: 住房改革支出 | F67: 4.05 | G67: 4.05
A68: 221 | B68: 02 | C68: 01 | D68: 2210201 | E68: 住房公积金 | F68: 4.05 | G68: 4.05
D69: 420006 | E69: 岳阳县畜禽良种繁殖场 | F69: 48.00 | H69: 48.00
A70: 213 | E70: 农林水支出 | F70: 48.00 | H70: 48.00
A71: 213 | B71: 01 | E71: 农业农村 | F71: 48.00 | H71: 48.00
A72: 213 | B72: 01 | C72: 06 | D72: 2130106 | E72: 科技转化与推广服务 | F72: 48.00 | H72: 48.00
D73: 420007 | E73: 岳阳县养殖技术推广站 | F73: 97.64 | G73: 97.64
A74: 208 | E74: 社会保障和就业支出 | F74: =F75+F77 -> 9.20 | G74: =G75+G77 -> 9.20
A75: 208 | B75: 05 | E75: 行政事业单位养老支出 | F75: 8.66 | G75: 8.66
A76: 208 | B76: 05 | C76: 05 | D76: 2080505 | E76: 机关事业单位基本养老保险缴费支出 | F76: 8.66 | G76: 8.66
A77: 208 | B77: 99 | E77: 其他社会保障和就业支出 | F77: 0.54 | G77: 0.54
A78: 208 | B78: 99 | C78: 99 | D78: 2089999 | E78: 其他社会保障和就业支出 | F78: 0.54 | G78: 0.54
A79: 210 | E79: 卫生健康支出 | F79: 4.60 | G79: 4.60
A80: 210 | B80: 01 | E80: 行政事业单位医疗 | F80: 4.60 | G80: 4.60
A81: 210 | B81: 01 | C81: 01 | D81: 2100101 | E81: 行政运行 | F81: 4.60 | G81: 4.60
A82: 213 | E82: 农林水支出 | F82: 77.35 | G82: 77.35
A83: 213 | B83: 01 | E83: 农业农村 | F83: 77.35 | G83: 77.35
A84: 213 | B84: 01 | C84: 06 | D84: 2130106 | E84: 科技转化与推广服务 | F84: 77.35 | G84: 77.35
A85: 221 | E85: 住房保障支出 | F85: 6.49 | G85: 6.49
A86: 221 | B86: 02 | E86: 住房改革支出 | F86: 6.49 | G86: 6.49
A87: 221 | B87: 02 | C87: 01 | D87: 2210201 | E87: 住房公积金 | F87: 6.49 | G87: 6.49
D88: 420008 | E88: 岳阳县畜禽水产品质量安全检验检测中心 | F88: 76.06 | G88: 66.06 | H88: 10.00
A89: 208 | B89: 05 | E89: 社会保障和就业支出 | F89: =F90+F92 -> 6.17 | G89: =G90+G92 -> 6.17
A90: 208 | B90: 05 | E90: 行政事业单位养老支出 | F90: 5.81 | G90: 5.81
A91: 208 | B91: 05 | C91: 05 | D91: 2080505 | E91: 机关事业单位基本养老保险缴费支出 | F91: 5.81 | G91: 5.81
A92: 208 | B92: 99 | E92: 其他社会保障和就业支出 | F92: 0.36 | G92: 0.36
A93: 208 | B93: 99 | C93: 99 | D93: 2089999 | E93: 其他社会保障和就业支出 | F93: 0.36 | G93: 0.36
A94: 210 | E94: 卫生健康支出 | F94: 3.09 | G94: 3.09
A95: 210 | B95: 11 | E95: 行政事业单位医疗 | F95: 3.09 | G95: 3.09
A96: 210 | B96: 11 | C96: 01 | D96: 2101101 | E96: 行政单位医疗 | F96: 3.09 | G96: 3.09
A97: 213 | E97: 农林水支出 | F97: 62.44 | G97: 52.44 | H97: 10.00
A98: 213 | B98: 01 | E98: 农业农村 | F98: 62.44 | G98: 52.44 | H98: 10.00
A99: 213 | B99: 01 | C99: 08 | D99: 2130108 | E99: 病虫害控制 | F99: 62.44 | G99: 52.44 | H99: 10.00
A100: 221 | E100: 住房保障支出 | F100: 4.36 | G100: 4.36
A101: 221 | B101: 02 | E101: 住房改革支出 | F101: 4.36 | G101: 4.36
A102: 221 | B102: 02 | C102: 01 | D102: 2210201 | E102: 住房公积金 | F102: 4.36 | G102: 4.36

Sheet 4支出分类(政府预算)
A2: 支出预算分类汇总表（按政府预算经济分类）
A3: 单位：420-岳阳县畜牧水产发展服务中心(汇总） | S3: 金额单位：万元
A4: 功能科目 | D4: 单位代码 | E4: 单位名称（功能科目） | F4: 总 计 | G4: 机关工资福利支出 | H4: 机关商品和服务支出 | I4: 机关资本性支出(一) | J4: 机关资本性支出(二) | K4: 对事业单位经常性补助 | L4: 对事业单位资本性补助 | M4: 对企业补助 | N4: 对企业资本性支出 | O4: 对个人和家庭的补助 | P4: 对社会保障基金补助 | Q4: 债务利息及费用支出 | R4: 债务还本支出 | S4: 转移性支出 | T4: 其他支出
A5: 类 | B5: 款 | C5: 项
E6: 合计 | F6: =G6+H6+K6+T6 -> 950.10 | G6: =G7 -> 277.22 | H6: =H7+H13+H19+H34+H40 -> 15.12 | K6: =K7 -> 243.36 | T6: =T7+T19+T25+T32+T40 -> 414.40
D7: 420 | E7: 岳阳县畜牧水产发展服务中心 | F7: =F8+F14+F20+F26+F28+F33+F35+F41 -> 950.10 | G7: =G8+G14+G20+G35+G41 -> 277.22 | H7: =H8+H14+H20+H35+H41 -> 15.12 | K7: =K8+K14+K20+K28+K26+K33+K35+K41 -> 243.36 | T7: =T8+T20+T26+T33+T41 -> 414.40
D8: 420001 | E8: 岳阳县畜牧水产发展服务中心 | F8: 398.94 | K8: 182.94 | T8: 216.00
A9: 213 | B9: 01 | C9: 01 | D9: 420001 | E9: 行政运行 | F9: 360.71 | K9: 144.71
A10: 208 | B10: 05 | C10: 05 | D10: 420001 | E10: 机关事业单位基本养老保险缴费支出 | F10: 16.31 | K10: 16.31
A11: 208 | B11: 99 | C11: 99 | D11: 420001 | E11: 其他社会保障和就业支出 | F11: 1.02 | K11: 1.02
A12: 210 | B12: 11 | C12: 01 | D12: 420001 | E12: 行政单位医疗 | F12: 8.67 | K12: 8.67
A13: 221 | B13: 02 | C13: 01 | D13: 420001 | E13: 住房公积金 | F13: 12.24 | K13: 12.24
D14: 420002 | E14: 岳阳县动物疫病预防控制中心 | F14: 50.52 | G14: 48.36 | H14: 2.16
A15: 213 | B15: 01 | C15: 08 | D15: 420002 | E15: 病虫害控制 | F15: 39.43 | G15: 37.27 | H15: 2.16
A16: 208 | B16: 05 | C16: 05 | D16: 420002 | E16: 机关事业单位基本养老保险缴费支出 | F16: 4.73 | G16: 4.73
A17: 208 | B17: 99 | C17: 99 | D17: 420002 | E17: 其他社会保障和就业支出 | F17: 0.30 | G17: 0.30
A18: 210 | B18: 11 | C18: 01 | D18: 420002 | E18: 行政单位医疗 | F18: 2.51 | G18: 2.51
A19: 221 | B19: 02 | C19: 01 | D19: 420002 | E19: 住房公积金 | F19: 3.55 | G19: 3.55
D20: 420003 | E20: 岳阳县动物卫生监督所 | F20: 113.13 | G20: 74.35 | H20: 3.78 | T20: 35.00
A21: 213 | B21: 01 | C21: 08 | D21: 420003 | E21: 病虫害控制 | F21: 96.39 | G21: 57.61 | H21: 3.78 | T21: 35.00
A22: 201 | B22: 01 | C22: 01 | D22: 420003 | E22: 行政运行 | F22: 3.79 | G22: 3.79
A23: 208 | B23: 05 | C23: 05 | D23: 420003 | E23: 机关事业单位基本养老保险缴费支出 | F23: 7.14 | G23: 7.14
A24: 208 | B24: 99 | C24: 99 | D24: 420003 | E24: 其他社会保障和就业支出 | F24: 0.45 | G24: 0.45
A25: 221 | B25: 02 | C25: 01 | D25: 420003 | E25: 住房公积金 | F25: 5.35 | G25: 5.35
D26: 420004 | E26: 中洲渔场 | F26: 105.40 | T26: 105.40
A27: 213 | B27: 01 | C27: 99 | D27: 420004 | E27: 其他农业农村支出 | F27: 105.40 | T27: 105.40
D28: 420005 | E28: 岳阳县渔政监督管理站 | F28: 60.41 | K28: 60.41
A29: 213 | B29: 01 | C29: 10 | D29: 420005 | E29: 执法监管 | F29: 47.75 | K29: 47.75
A30: 208 | B30: 05 | C30: 05 | D30: 420005 | E30: 机关事业单位基本养老保险缴费支出 | F30: 8.27 | K30: 8.27
A31: 208 | B31: 99 | C31: 99 | D31: 420005 | E31: 其他社会保障和就业支出 | F31: 0.34 | K31: 0.34
A32: 221 | B32: 02 | C32: 01 | D32: 420005 | E32: 住房公积金 | F32: 4.05 | K32: 4.05
D33: 420006 | E33: 岳阳县畜禽良种繁殖场 | F33: 48.00 | T33: 48.00
A34: 213 | B34: 01 | C34: 06 | D34: 420006 | E34: 科技转化与推广服务 | F34: 48.00 | G34: 48.00 | T34: 48.00
D35: 420007 | E35: 岳阳县养殖技术推广站 | F35: 97.64 | G35: 92.24 | H35: 5.40
A36: 213 | B36: 01 | C36: 06 | D36: 420007 | E36: 科技转化与推广服务 | F36: 77.35 | G36: 71.95 | H36: 5.40
A37: 208 | B37: 05 | C37: 05 | D37: 420007 | E37: 机关事业单位基本养老保险缴费支出 | F37: 8.66 | G37: 8.66
A38: 208 | B38: 99 | C38: 99 | D38: 420007 | E38: 其他社会保障和就业支出 | F38: 0.54 | G38: 0.54
A39: 210 | B39: 01 | C39: 01 | D39: 420007 | E39: 行政运行 | F39: 4.60 | G39: 4.60
A40: 221 | B40: 02 | C40: 01 | D40: 420007 | E40: 住房公积金 | F40: 6.49 | G40: 6.49
D41: 420008 | E41: 岳阳县畜禽水产品质量安全检验检测中心 | F41: 76.06 | G41: 62.28 | H41: 3.78 | T41: 10.00
A42: 213 | B42: 01 | C42: 08 | D42: 420008 | E42: 病虫害控制 | F42: 62.44 | G42: 48.66 | H42: 3.78 | T42: 10.00
A43: 208 | B43: 05 | C43: 05 | D43: 420008 | E43: 机关事业单位基本养老保险缴费支出 | F43: 5.81 | G43: 5.81
A44: 208 | B44: 99 | C44: 99 | D44: 420008 | E44: 其他社会保障和就业支出 | F44: 0.36 | G44: 0.36
A45: 210 | B45: 11 | C45: 01 | D45: 420008 | E45: 行政单位医疗 | F45: 3.09 | G45: 3.09
A46: 221 | B46: 02 | C46: 01 | D46: 420008 | E46: 住房公积金 | F46: 4.36 | G46: 4.36

Sheet 5支出分类（部门预算）
A2: 支出预算分类汇总表（按部门预算经济分类）
A3: 单位：420-岳阳县畜牧水产发展服务中心(汇总）中心 | T3: 金额单位：万元
A4: 功能科目 | D4: 单位代码 | E4: 单位名称（功能科目） | F4: 总 计 | G4: 基本支出 | K4: 项目支出
A5: 类 | B5: 款 | C5: 项 | G5: 合计 | H5: 工资福利支出 | I5: 一般商品和服务支出 | J5: 对个人和家庭的补助 | K5: 合计 | L5: 按项目管理的工资福利支出 | M5: 按项目管理的商品和服务支出 | N5: 按项目管理的对个人和家庭的补助 | O5: 债务利息及费用支出 | P5: 资本性支出（基本建设） | Q5: 资本性支出 | R5: 对企业补助（基本建设） | S5: 对企业补助 | T5: 对社会保障基金补助 | U5: 其他支出
E6: 合计 | F6: =G6+K6 -> 950.10 | G6: =G7 -> 535.70 | H6: =H7 -> 508.20 | I6: =I7+I13+I19+I25+I32+I34+I40+I27 -> 27.50 | J6: 0.00 | K6: =K7+K19+K25+K32+K40 -> 414.40 | U6: =U7+U19+U25+U32+U40 -> 414.40
D7: 420 | E7: 岳阳县畜牧水产发展服务中心 | F7: =G7+K7 -> 950.10 | G7: =H7+I7+J7 -> 535.70 | H7: =H8+H14+H20+H26+H28+H33+H35+H41 -> 508.20 | I7: =I8+I14+I20+I26+I33+I35+I41+I28 -> 27.50 | J7: 0.00 | K7: =K8+K20+K26+K33+K41 -> 414.40 | U7: =U8+U20+U26+U33+U41 -> 414.40
D8: 420001 | E8: 岳阳县畜牧水产发展服务中心 | F8: 398.94 | G8: 182.94 | H8: 173.76 | I8: 9.18 | J8: 0.00 | K8: 216.00 | L8: 0.00 | U8: 216.00
A9: 213 | B9: 01 | C9: 01 | D9: 420001 | E9: 行政运行 | F9: 360.71 | G9: 144.71 | H9: 135.53 | I9: 9.18 | K9: 216.00 | U9: 216.00
A10: 208 | B10: 05 | C10: 05 | D10: 420001 | E10: 机关事业单位基本养老保险缴费支出 | F10: 16.31 | G10: 16.31 | H10: 16.31
A11: 208 | B11: 99 | C11: 99 | D11: 420001 | E11: 其他社会保障和就业支出 | F11: 1.02 | G11: 1.02 | H11: 1.02
A12: 210 | B12: 11 | C12: 01 | D12: 420001 | E12: 行政单位医疗 | F12: 8.67 | G12: 8.67 | H12: 8.67
A13: 221 | B13: 02 | C13: 01 | D13: 420001 | E13: 住房公积金 | F13: 12.24 | G13: 12.24 | H13: 12.24
D14: 420002 | E14: 岳阳县动物疫病预防控制中心 | F14: 50.52 | G14: 50.52 | H14: 48.36 | I14: 2.16 | J14: 0.00 | K14: 0.00 | L14: 0.00
A15: 213 | B15: 01 | C15: 08 | D15: 420002 | E15: 病虫害控制 | F15: 39.43 | G15: 39.43 | H15: 37.27 | I15: 2.16
A16: 208 | B16: 05 | C16: 05 | D16: 420002 | E16: 机关事业单位基本养老保险缴费支出 | F16: 4.73 | G16: 4.73 | H16: 4.73
A17: 208 | B17: 99 | C17: 99 | D17: 420002 | E17: 其他社会保障和就业支出 | F17: 0.30 | G17: 0.30 | H17: 0.30
A18: 210 | B18: 11 | C18: 01 | D18: 420002 | E18: 行政单位医疗 | F18: 2.51 | G18: 2.51 | H18: 2.51
A19: 221 | B19: 02 | C19: 01 | D19: 420002 | E19: 住房公积金 | F19: 3.55 | G19: 3.55 | H19: 3.55
D20: 420003 | E20: 岳阳县动物卫生监督所 | F20: 113.13 | G20: 78.13 | H20: 74.35 | I20: 3.78 | J20: 0.00 | K20: 35.00 | L20: 0.00 | U20: 35.00
A21: 213 | B21: 01 | C21: 08 | D21: 420003 | E21: 病虫害控制 | F21: 96.39 | G21: 61.39 | H21: 57.61 | I21: 3.78 | K21: 35.00 | U21: 35.00
A22: 201 | B22: 01 | C22: 01 | D22: 420003 | E22: 行政运行 | F22: 3.79 | G22: 3.79 | H22: 3.79
A23: 208 | B23: 05 | C23: 05 | D23: 420003 | E23: 机关事业单位基本养老保险缴费支出 | F23: 7.14 | G23: 7.14 | H23: 7.14
A24: 208 | B24: 99 | C24: 99 | D24: 420003 | E24: 其他社会保障和就业支出 | F24: 0.45 | G24: 0.45 | H24: 0.45
A25: 221 | B25: 02 | C25: 01 | D25: 420003 | E25: 住房公积金 | F25: 5.35 | G25: 5.35 | H25: 5.35
D26: 420004 | E26: 中洲渔场 | F26: 105.40 | H26: 0.00 | I26: 0.00 | J26: 0.00 | K26: 105.40 | L26: 0.00 | U26: 105.40
A27: 213 | B27: 01 | C27: 99 | D27: 420004 | E27: 其他农业农村支出 | F27: 105.40 | K27: 105.40 | U27: 105.40
D28: 420005 | E28: 岳阳县渔政监督管理站 | F28: 60.41 | G28: 60.41 | H28: 57.21 | I28: 3.20 | J28: 0.00 | K28: 0.00 | L28: 0.00
A29: 213 | B29: 01 | C29: 10 | D29: 420005 | E29: 执法监管 | F29: 47.75 | G29: 47.75 | H29: 44.55 | I29: 3.20
A30: 208 | B30: 05 | C30: 05 | D30: 420005 | E30: 机关事业单位基本养老保险缴费支出 | F30: 8.27 | G30: 8.27 | H30: 8.27
A31: 208 | B31: 99 | C31: 99 | D31: 420005 | E31: 其他社会保障和就业支出 | F31: 0.34 | G31: 0.34 | H31: 0.34
A32: 221 | B32: 02 | C32: 01 | D32: 420005 | E32: 住房公积金 | F32: 4.05 | G32: 4.05 | H32: 4.05
D33: 420006 | E33: 岳阳县畜禽良种繁殖场 | F33: 48.00 | H33: 0.00 | I33: 0.00 | J33: 0.00 | K33: 48.00 | U33: 48.00
A34: 213 | B34: 01 | C34: 06 | D34: 420006 | E34: 科技转化与推广服务 | F34: 48.00 | K34: 48.00 | U34: 48.00
D35: 420007 | E35: 岳阳县养殖技术推广站 | F35: 97.64 | G35: 97.64 | H35: 92.24 | I35: 5.40 | J35: 0.00 | K35: 0.00 | L35: 0.00
A36: 213 | B36: 01 | C36: 06 | D36: 420007 | E36: 科技转化与推广服务 | F36: 77.35 | G36: 77.35 | H36: 71.95 | I36: 5.40
A37: 208 | B37: 05 | C37: 05 | D37: 420007 | E37: 机关事业单位基本养老保险缴费支出 | F37: 8.66 | G37: 8.66 | H37: 8.66
A38: 208 | B38: 99 | C38: 99 | D38: 420007 | E38: 其他社会保障和就业支出 | F38: 0.54 | G38: 0.54 | H38: 0.54
A39: 210 | B39: 01 | C39: 01 | D39: 420007 | E39: 行政运行 | F39: 4.60 | G39: 4.60 | H39: 4.60
A40: 221 | B40: 02 | C40: 01 | D40: 420007 | E40: 住房公积金 | F40: 6.49 | G40: 6.49 | H40: 6.49
D41: 420008 | E41: 岳阳县畜禽水产品质量安全检验检测中心 | F41: 76.06 | G41: 66.06 | H41: 62.28 | I41: 3.78 | J41: 0.00 | K41: 10.00 | L41: 0.00 | U41: 10.00
A42: 213 | B42: 01 | C42: 08 | D42: 420008 | E42: 病虫害控制 | F42: 62.44 | G42: 52.44 | H42: 48.66 | I42: 3.78 | K42: 10.00 | U42: 10.00
A43: 208 | B43: 05 | C43: 05 | D43: 420008 | E43: 机关事业单位基本养老保险缴费支出 | F43: 5.81 | G43: 5.81 | H43: 5.81
A44: 208 | B44: 99 | C44: 99 | D44: 420008 | E44: 其他社会保障和就业支出 | F44: 0.36 | G44: 0.36 | H44: 0.36
A45: 210 | B45: 11 | C45: 01 | D45: 420008 | E45: 行政单位医疗 | F45: 3.09 | G45: 3.09 | H45: 3.09
A46: 221 | B46: 02 | C46: 01 | D46: 420008 | E46: 住房公积金 | F46: 4.36 | G46: 4.36 | H46: 4.36

Sheet 6财政拨款收支总表
A2: 财政拨款收支总表
A3: 单位：420-岳阳县畜牧水产发展服务中心(汇总） | D3: 金额单位：万元
A4: 收入 | C4: 支出
A5: 项目 | B5: 预算数 | C5: 项目 | D5: 预算数
A6: 一、本年收入 | B6: 950.10 | C6: 一、本年支出 | D6: 950.10
A7: （一）一般公共预算拨款 | B7: 950.10 | C7: （一）一般公共服务支出 | D7: 3.79
A8: 经费拨款 | B8: 950.10 | C8: （二）外交支出
A9: 纳入一般公共预算管理的非税收入拨款 | C9: （三）国防支出
A10: （二）政府性基金预算拨款 | C10: （四）公共安全支出
A11: （三）国有资本经营预算拨款 | C11: （五）教育支出
A12: （四）社会保险基金预算资金 | C12: （六）科学技术支出
A13: 二、上年结转 | C13: （七）文化旅游体育与传媒支出
A14: （一）一般公共预算拨款 | C14: （八）社会保障和就业支出 | D14: =17.33388+36.59 -> 53.92
A15: （二）政府性基金预算拨款 | C15: （九）社会保险基金支出
A16: （三）国有资本经营预算拨款 | C16: （十）卫生健康支出 | D16: =8.66694+10.198 -> 18.86
A17: （四）社会保险基金预算资金 | C17: （十一）节能环保支出
C18: （十二）城乡社区支出
C19: （十三）农林水支出 | D19: =360.7076+371.372+105.4 -> 837.48
C20: （十四）交通运输支出
C21: （十五）资源勘探工业信息等支出
C22: （十六）商业服务业等支出
C23: （十七）金融支出
C24: （十八）援助其他地区支出
C25: （十九）自然资源海洋气象等支出
C26: （二十）住房保障支出 | D26: =12.23568+23.803 -> 36.04
C27: （二十一）粮油物资储备支出
C28: （二十二）国有资本经营预算支出
C29: （二十三）灾害防治及应急管理支出
C30: （二十四）预备费
C31: （二十五）其他支出
C32: （二十六）转移性支出
C33: （二十七）债务还本支出
C34: （二十八）债务付息支出
C35: （二十九）债务发行费用支出
C36: （三十）抗疫特别国债安排的支出
C38: 二、年终结转结余
A40: 收 入 总 计 | B40: 950.10 | C40: 支 出 总 计 | D40: 950.10

Sheet 7一般公共预算支出表
A2: 一般公共预算支出表
A3: 单位：420-岳阳县畜牧水产发展服务中心(汇总） | J3: 金额单位：万元
A4: 功能科目 | D4: 科目编码 | E4: 科目名称 | F4: 合计 | G4: 基本支出 | K4: 项目支出
G5: 小计 | H5: 人员经费 | J5: 公用经费
A6: 类 | B6: 款 | C6: 项 | H6: 工资福利支出 | I6: 对个人和家庭的补助
E7: 合计 | F7: =F8 -> 950.10 | G7: =G8 -> 535.70 | H7: =H8 -> 508.20 | J7: =J8+J23+J38+J57+J73+J88 -> 27.50 | K7: =K8+K38+K53+K69+K88 -> 414.40
D8: 420 | E8: 岳阳县畜牧水产发展服务中心 | F8: =G8+K8 -> 950.10 | G8: =G9+G24+G39+G58+G74+G89 -> 535.70 | H8: =H9+H24+H39+H58+H74+H89 -> 508.20 | J8: =J9+J24+J39+J58+J74+J89 -> 27.50 | K8: =K9+K39+K54+K70+K89 -> 414.40
D9: 420001 | E9: 岳阳县畜牧水产发展服务中心 | F9: 398.94 | G9: 182.94 | H9: 173.76 | J9: 9.18 | K9: 216.00
A10: 208 | E10: 社会保障和就业支出 | F10: =F11+F13 -> 17.33 | G10: 17.33 | H10: 17.33
A11: 208 | B11: 05 | E11: 行政事业单位养老支出 | F11: 16.31 | G11: 16.31 | H11: 16.31
A12: 208 | B12: 05 | C12: 05 | D12: 2080505 | E12: 机关事业单位基本养老保险缴费支出 | F12: 16.31 | G12: 16.31 | H12: 16.31
A13: 208 | B13: 99 | E13: 其他社会保障和就业支出 | F13: 1.02 | G13: 1.02 | H13: 1.02
A14: 208 | B14: 99 | C14: 99 | D14: 2089999 | E14: 其他社会保障和就业支出 | F14: 1.02 | G14: 1.02 | H14: 1.02
A15: 210 | E15: 卫生健康支出 | F15: 8.67 | G15: 8.67 | H15: 8.67
A16: 210 | B16: 11 | E16: 行政事业单位医疗 | F16: 8.67 | G16: 8.67 | H16: 8.67
A17: 210 | B17: 11 | C17: 01 | D17: 2101101 | E17: 行政单位医疗 | F17: 8.67 | G17: 8.67 | H17: 8.67
A18: 213 | E18: 农林水支出 | F18: 360.71 | G18: 144.71 | H18: 135.53 | J18: 9.18 | K18: 216.00
A19: 213 | B19: 01 | E19: 农业农村 | F19: 360.71 | G19: 144.71 | H19: 135.53 | J19: 9.18 | K19: 216.00
A20: 213 | B20: 01 | C20: 01 | D20: 2130101 | E20: 行政运行 | F20: 360.71 | G20: 144.71 | H20: 135.53 | J20: 9.18 | K20: 216.00
A21: 221 | E21: 住房保障支出 | F21: 12.24 | G21: 12.24 | H21: 12.24
A22: 221 | B22: 02 | E22: 住房改革支出 | F22: 12.24 | G22: 12.24 | H22: 12.24
A23: 221 | B23: 02 | C23: 01 | D23: 2210201 | E23: 住房公积金 | F23: 12.24 | G23: 12.24 | H23: 12.24
D24: 420002 | E24: 岳阳县动物疫病预防控制中心 | F24: 50.52 | G24: 50.52 | H24: 48.36 | J24: 2.16
A25: 208 | E25: 社会保障和就业支出 | F25: =F26+F29 -> 5.02 | G25: =G26+G29 -> 5.02 | H25: =H26+H28 -> 5.02
A26: 208 | B26: 05 | E26: 行政事业单位养老支出 | F26: 4.73 | G26: 4.73 | H26: 4.73
A27: 208 | B27: 05 | C27: 05 | D27: 2080505 | E27: 机关事业单位基本养老保险缴费支出 | F27: 4.73 | G27: 4.73 | H27: 4.73
A28: 208 | B28: 99 | E28: 其他社会保障和就业支出 | F28: 0.30 | G28: 0.30 | H28: 0.30
A29: 208 | B29: 99 | C29: 99 | D29: 2089999 | E29: 其他社会保障和就业支出 | F29: 0.30 | G29: 0.30 | H29: 0.30
A30: 210 | E30: 行政事业单位医疗 | F30: 2.51 | G30: 2.51 | H30: 2.51
A31: 210 | B31: 11 | E31: 行政单位医疗 | F31: 2.51 | G31: 2.51 | H31: 2.51
A32: 210 | B32: 11 | C32: 01 | D32: 2101101 | E32: 行政单位医疗 | F32: 2.51 | G32: 2.51 | H32: 2.51
A33: 213 | E33: 农林水支出 | F33: 39.43 | G33: 39.43 | H33: 37.27 | J33: 2.16
A34: 213 | B34: 01 | E34: 农业农村 | F34: 39.43 | G34: 39.43 | H34: 37.27 | J34: 2.16
A35: 213 | B35: 01 | C35: 08 | D35: 2130108 | E35: 病虫害控制 | F35: 39.43 | G35: 39.43 | H35: 37.27 | J35: 2.16
A36: 221 | E36: 住房保障支出 | F36: 3.55 | G36: 3.55 | H36: 3.55
A37: 221 | B37: 02 | E37: 住房改革支出 | F37: 3.55 | G37: 3.55 | H37: 3.55
A38: 221 | B38: 02 | C38: 01 | D38: 2210201 | E38: 住房公积金 | F38: 3.55 | G38: 3.55 | H38: 3.55
D39: 420003 | E39: 岳阳县动物卫生监督所 | F39: 113.13 | G39: 78.13 | H39: 74.35 | J39: 3.78 | K39: 35.00
A40: 201 | E40: 一般公共服务支出 | F40: 3.79 | G40: 3.79 | H40: 3.79
A41: 201 | B41: 01 | E41: 人大事务 | F41: 3.79 | G41: 3.79 | H41: 3.79
A42: 201 | B42: 01 | C42: 01 | D42: 2010101 | E42: 行政运行 | F42: 3.79 | G42: 3.79 | H42: 3.79
A43: 208 | E43: 社会保障和就业支出 | F43: =F44+F46 -> 7.59 | G43: 7.59 | H43: 7.59
A44: 208 | B44: 05 | E44: 行政事业单位养老支出 | F44: 7.14 | G44: 7.14 | H44: 7.14
A45: 208 | B45: 05 | C45: 05 | D45: 2080505 | E45: 机关事业单位基本养老保险缴费支出 | F45: 7.14 | G45: 7.14 | H45: 7.14
A46: 208 | B46: 99 | E46: 其他社会保障和就业支出 | F46: 0.45 | G46: 0.45 | H46: 0.45
A47: 208 | B47: 99 | C47: 99 | D47: 2089999 | E47: 其他社会保障和就业支出 | F47: 0.45 | G47: 0.45 | H47: 0.45
A48: 213 | E48: 农林水支出 | F48: 96.39 | G48: 61.39 | H48: 57.61 | J48: 3.78 | K48: 35.00
A49: 213 | B49: 01 | E49: 农业农村 | F49: 96.39 | G49: 61.39 | H49: 57.61 | J49: 3.78 | K49: 35.00
A50: 213 | B50: 01 | C50: 08 | D50: 2130108 | E50: 病虫害控制 | F50: 96.39 | G50: 61.39 | H50: 57.61 | J50: 3.78 | K50: 35.00
A51: 221 | E51: 住房保障支出 | F51: 5.35 | G51: 5.35 | H51: 5.35
A52: 221 | B52: 02 | E52: 住房改革支出 | F52: 5.35 | G52: 5.35 | H52: 5.35
A53: 221 | B53: 02 | C53: 01 | D53: 2210201 | E53: 住房公积金 | F53: 5.35 | G53: 5.35 | H53: 5.35
D54: 420004 | E54: 中洲渔场 | F54: 105.40 | G54: 105.40 | H54: 105.40 | K54: 105.40
A55: 213 | E55: 农林水支出 | K55: 105.40
A56: 213 | B56: 01 | E56: 农业农村 | K56: 105.40
A57: 213 | B57: 01 | C57: 99 | D57: 2130199 | E57: 其他农业农村支出 | F57: 105.40 | G57: 105.40 | H57: 105.40 | K57: 105.40
D58: 420005 | E58: 岳阳县渔政监督管理站 | F58: 60.41 | G58: 60.41 | H58: 57.21 | J58: 3.20
A59: 208 | E59: 社会保障和就业支出 | F59: =F60+F62 -> 8.61 | G59: 8.61 | H59: 8.61
A60: 208 | B60: 05 | E60: 行政事业单位养老支出 | F60: 8.27 | G60: 8.27 | H60: 8.27
A61: 208 | B61: 05 | C61: 05 | D61: 2080505 | E61: 机关事业单位基本养老保险缴费支出 | F61: 8.27 | G61: 8.27 | H61: 8.27
A62: 208 | B62: 99 | E62: 其他社会保障和就业支出 | F62: 0.34 | G62: 0.34 | H62: 0.34
A63: 208 | B63: 99 | C63: 99 | D63: 2089999 | E63: 其他社会保障和就业支出 | F63: 0.34 | G63: 0.34 | H63: 0.34
A64: 213 | E64: 农林水支出 | F64: 47.75 | G64: 47.75 | H64: 44.55 | J64: 3.20
A65: 213 | B65: 01 | E65: 农业农村 | F65: 47.75 | G65: 47.75 | H65: 44.55 | J65: 3.20
A66: 213 | B66: 01 | C66: 10 | D66: 2130110 | E66: 执法监管 | F66: 47.75 | G66: 47.75 | H66: 44.55 | J66: 3.20
A67: 221 | E67: 住房保障支出 | F67: 4.05 | G67: 4.05 | H67: 4.05
A68: 221 | B68: 02 | E68: 住房改革支出 | F68: 4.05 | G68: 4.05 | H68: 4.05
A69: 221 | B69: 02 | C69: 01 | D69: 2210201 | E69: 住房公积金 | F69: 4.05 | G69: 4.05 | H69: 4.05
D70: 420006 | E70: 岳阳县畜禽良种繁殖场 | F70: 48.00 | K70: 48.00
A71: 213 | E71: 农林水支出 | F71: 48.00 | K71: 48.00
A72: 213 | B72: 01 | E72: 农业农村 | F72: 48.00 | K72: 48.00
A73: 213 | B73: 01 | C73: 06 | D73: 2130106 | E73: 科技转化与推广服务 | F73: 48.00 | K73: 48.00
D74: 420007 | E74: 岳阳县养殖技术推广站 | F74: 97.64 | G74: 97.64 | H74: 92.24 | J74: 5.40
A75: 208 | E75: 社会保障和就业支出 | F75: =F76+F78 -> 9.20 | G75: 9.20 | H75: 9.20
A76: 208 | B76: 05 | E76: 行政事业单位养老支出 | F76: 8.66 | G76: 8.66 | H76: 8.66
A77: 208 | B77: 05 | C77: 05 | D77: 2080505 | E77: 机关事业单位基本养老保险缴费支出 | F77: 8.66 | G77: 8.66 | H77: 8.66
A78: 208 | B78: 99 | E78: 其他社会保障和就业支出 | F78: 0.54 | G78: 0.54 | H78: 0.54
A79: 208 | B79: 99 | C79: 99 | D79: 2089999 | E79: 其他社会保障和就业支出 | F79: 0.54 | G79: 0.54 | H79: 0.54
A80: 210 | E80: 行政单位医疗 | F80: 4.60 | G80: 4.60 | H80: 4.60
A81: 210 | B81: 01 | E81: 行政单位医疗 | F81: 4.60 | G81: 4.60 | H81: 4.60
A82: 210 | B82: 01 | C82: 01 | D82: 2100101 | E82: 行政运行 | F82: 4.60 | G82: 4.60 | H82: 4.60
A83: 213 | E83: 农林水支出 | F83: 77.35 | G83: 77.35 | H83: 71.95 | J83: 5.40
A84: 213 | B84: 01 | E84: 农业农村 | F84: 77.35 | G84: 77.35 | H84: 71.95 | J84: 5.40
A85: 213 | B85: 01 | C85: 06 | D85: 2130106 | E85: 科技转化与推广服务 | F85: 77.35 | G85: 77.35 | H85: 71.95 | J85: 5.40
A86: 221 | E86: 住房保障支出 | F86: 6.49 | G86: 6.49 | H86: 6.49
A87: 221 | B87: 02 | E87: 住房改革支出 | F87: 6.49 | G87: 6.49 | H87: 6.49
A88: 221 | B88: 02 | C88: 01 | D88: 2210201 | E88: 住房公积金 | F88: 6.49 | G88: 6.49 | H88: 6.49
D89: 420008 | E89: 岳阳县畜禽水产品质量安全检验检测中心 | F89: 76.06 | G89: 66.06 | H89: 62.28 | J89: 3.78 | K89: 10.00
A90: 208 | E90: 社会保障和就业支出 | F90: =F91+F93 -> 6.17 | G90: 6.17 | H90: 6.17
A91: 208 | B91: 05 | E91: 行政事业单位养老支出 | F91: 5.81 | G91: 5.81 | H91: 5.81
A92: 208 | B92: 05 | C92: 05 | D92: 2080505 | E92: 机关事业单位基本养老保险缴费支出 | F92: 5.81 | G92: 5.81 | H92: 5.81
A93: 208 | B93: 99 | E93: 其他社会保障和就业支出 | F93: 0.36 | G93: 0.36 | H93: 0.36
A94: 208 | B94: 99 | C94: 99 | D94: 2089999 | E94: 其他社会保障和就业支出 | F94: 0.36 | G94: 0.36 | H94: 0.36
A95: 210 | E95: 行政单位医疗 | F95: 3.09 | G95: 3.09 | H95: 3.09
A96: 210 | B96: 11 | E96: 行政单位医疗 | F96: 3.09 | G96: 3.09 | H96: 3.09
A97: 210 | B97: 11 | C97: 01 | D97: 2101101 | E97: 行政单位医疗 | F97: 3.09 | G97: 3.09 | H97: 3.09
A98: 213 | E98: 农林水支出 | F98: 62.44 | G98: 52.44 | H98: 48.66 | J98: 3.78 | K98: 10.00
A99: 213 | B99: 01 | E99: 农业农村 | F99: 62.44 | G99: 52.44 | H99: 48.66 | J99: 3.78 | K99: 10.00
A100: 213 | B100: 01 | C100: 08 | D100: 2130108 | E100: 病虫害控制 | F100: 62.44 | G100: 52.44 | H100: 48.66 | J100: 3.78 | K100: 10.00
A101: 221 | E101: 住房保障支出 | F101: 4.36 | G101: 4.36 | H101: 4.36
A102: 221 | B102: 02 | E102: 住房改革支出 | F102: 4.36 | G102: 4.36 | H102: 4.36
A103: 221 | B103: 02 | C103: 01 | D103: 2210201 | E103: 住房公积金 | F103: 4.36 | G103: 4.36 | H103: 4.36

Sheet 8一般公共预算基本支出表
A1: 一般公共预算基本支出表
A2: 单位：420-岳阳县畜牧水产发展服务中心(汇总） | E2: 金额单位：万元
A3: 部门预算支出经济分类科目 | C3: 本年一般公共预算基本支出
A4: 科目编码 | B4: 科目名称 | C4: 合计 | D4: 人员经费 | E4: 公用经费
A5: 301 | B5: 工资福利支出 | C5: =D5+E5 -> 508.20 | D5: =SUM(D6:D13) -> 508.20 | E5: =SUM(E6:E13) -> 0
A6: 30101 | B6: 基本工资 | C6: 128.30 | D6: ='10工资福利'!H6 -> 128.30
A7: 30102 | B7: 津贴补贴 | C7: 61.69 | D7: ='10工资福利'!I6 -> 61.69
A8: 30107 | B8: 绩效工资 | C8: 70.06 | D8: ='10工资福利'!K6 -> 70.06
A9: 30108 | B9: 机关事业单位基本养老保险缴费 | C9: 205.50 | D9: ='10工资福利'!M6 -> 205.50
A10: 30110 | B10: 职工基本医疗保险缴费 | C10: 14.88 | D10: ='10工资福利'!O6 -> 14.88
A11: 30111 | B11: 公务员医疗补助缴费 | C11: 1.98 | D11: ='10工资福利'!P6 -> 1.98
A12: 30112 | B12: 其他社会保障缴费 | C12: 1.98 | D12: ='10工资福利'!Q6 -> 1.98
A13: 30113 | B13: 住房公积金 | C13: 23.80 | D13: ='10工资福利'!R6 -> 23.80
A14: 302 | B14: 商品和服务支出 | C14: 27.50 | D14: =SUM(D15:D25) -> 0 | E14: =SUM(E15:E25) -> 27.50
A15: 30201 | B15: 办公费 | C15: 3.58 | E15: ='14商品服务'!G6 -> 3.58
A16: 30202 | B16: 印刷费 | C16: 1.49 | E16: ='14商品服务'!H6 -> 1.49
A17: 30205 | B17: 水费 | C17: 0.49 | E17: ='14商品服务'!K6 -> 0.49
A18: 30206 | B18: 电费 | C18: 2.06 | E18: ='14商品服务'!L6 -> 2.06
A19: 30207 | B19: 邮电费 | C19: 3.43 | E19: ='14商品服务'!M6 -> 3.43
A20: 30209 | B20: 物业管理费 | C20: 2.39 | E20: ='14商品服务'!O6 -> 2.39
A21: 30211 | B21: 差旅费 | C21: 5.31 | E21: ='14商品服务'!P6 -> 5.31
A22: 30213 | B22: 维修（护）费 | C22: 1.19 | E22: ='14商品服务'!R6 -> 1.19
A23: 30216 | B23: 培训费 | C23: 1.56 | E23: ='14商品服务'!U6 -> 1.56
A24: 30217 | B24: 公务接待费 | C24: 3.67 | E24: ='14商品服务'!V6 -> 3.67
A25: 30299 | B25: 其他商品和服务支出 | C25: 2.33 | E25: ='14商品服务'!AG6 -> 2.33
A26: 合计 | C26: =C14+C5 -> 535.70 | D26: =D14+D5 -> 508.20 | E26: =E14+E5 -> 27.50

Sheet 9工资福利(政府预算)
A2: 一般公共预算基本支出表--人员经费(工资福利支出)(按政府预算经济分类)
A3: 单位：420-岳阳县畜牧水产发展服务中心(汇总） | M3: 金额单位：万元
A4: 功能科目 | D4: 单位代码 | E4: 单位名称（功能科目） | F4: 总 计 | G4: 机关工资福利支出 | L4: 对事业单位经常性补助
A5: 类 | B5: 款 | C5: 项 | G5: 合计 | H5: 工资奖金津补贴 | I5: 社会保障缴费 | J5: 住房公积金 | K5: 其他工资福利支出 | L5: 合计 | M5: 工资福利支出 | N5: 其他对事业单位补助
E6: 合计 | F6: =F7 -> 508.20 | G6: =G7 -> 277.22 | H6: =H7 -> 215.50 | I6: =I7 -> 41.97 | J6: =J7 -> 19.75 | L6: =L7 -> 230.98 | M6: =M7 -> 230.98
D7: 420 | E7: 岳阳县畜牧水产发展服务中心 | F7: =F8+F14+F20+F27+F33+F39 -> 508.20 | G7: =G14+G20+G33+G39 -> 277.22 | H7: =H14+H20+H33+H39 -> 215.50 | I7: =I14+I20+I33+I39 -> 41.97 | J7: =J14+J20+J33+J39 -> 19.75 | L7: =L8+L27 -> 230.98 | M7: =M8+M27 -> 230.98
D8: 420001 | E8: 岳阳县畜牧水产发展服务中心 | F8: 173.76 | L8: 173.76 | M8: 173.76
A9: 208 | B9: 05 | C9: 05 | D9: 420001 | E9: 机关事业单位基本养老保险缴费支出 | F9: 16.31 | L9: 16.31 | M9: 16.31
A10: 208 | B10: 99 | C10: 99 | D10: 420001 | E10: 其他社会保障和就业支出 | F10: 1.02 | L10: 1.02 | M10: 1.02
A11: 210 | B11: 11 | C11: 01 | D11: 420001 | E11: 行政单位医疗 | F11: 8.67 | L11: 8.67 | M11: 8.67
A12: 213 | B12: 01 | C12: 01 | D12: 420001 | E12: 行政运行 | F12: 135.53 | L12: 135.53 | M12: 135.53
A13: 221 | B13: 02 | C13: 01 | D13: 420001 | E13: 住房公积金 | F13: 12.24 | L13: 12.24 | M13: 12.24
D14: 420002 | E14: 岳阳县动物疫病预防控制中心 | F14: 48.36 | G14: 48.36 | H14: 37.27 | I14: 7.54 | J14: 3.55
A15: 208 | B15: 05 | C15: 05 | D15: 420002 | E15: 机关事业单位基本养老保险缴费支出 | F15: 4.73 | G15: 4.73 | I15: 4.73
A16: 208 | B16: 99 | C16: 99 | D16: 420002 | E16: 其他社会保障和就业支出 | F16: 0.30 | G16: 0.30 | I16: 0.30
A17: 210 | B17: 11 | C17: 01 | D17: 420002 | E17: 行政单位医疗 | F17: 2.51 | G17: 2.51 | I17: 2.51
A18: 213 | B18: 01 | C18: 08 | D18: 420002 | E18: 病虫害控制 | F18: 37.27 | G18: 37.27 | H18: 37.27
A19: 221 | B19: 02 | C19: 01 | D19: 420002 | E19: 住房公积金 | F19: 3.55 | G19: 3.55 | J19: 3.55
D20: 420003 | E20: 岳阳县动物卫生监督所 | F20: 74.35 | G20: 74.35 | H20: 57.61 | I20: 11.38 | J20: 5.35
A21: 201 | B21: 01 | C21: 01 | D21: 420003 | E21: 行政运行 | F21: 3.79 | G21: 3.79 | I21: 3.79
A22: 208 | B22: 05 | C22: 05 | D22: 420003 | E22: 机关事业单位基本养老保险缴费支出 | F22: 7.14 | G22: 7.14 | I22: 7.14
A23: 208 | B23: 99 | C23: 99 | D23: 420003 | E23: 其他社会保障和就业支出 | F23: 0.45 | G23: 0.45 | I23: 0.45
A24: 213 | B24: 01 | C24: 08 | D24: 420003 | E24: 病虫害控制 | F24: 57.61 | G24: 57.61 | H24: 57.61
A25: 221 | B25: 02 | C25: 01 | D25: 420003 | E25: 住房公积金 | F25: 5.35 | G25: 5.35 | J25: 5.35
D26: 420004 | E26: 中洲渔场 | F26: 0.00
D27: 420005 | E27: 岳阳县渔政监督管理站 | F27: 57.21 | L27: 57.21 | M27: 57.21
A28: 208 | B28: 05 | C28: 05 | D28: 420005 | E28: 机关事业单位基本养老保险缴费支出 | F28: 8.27 | L28: 8.27 | M28: 8.27
A29: 208 | B29: 99 | C29: 99 | D29: 420005 | E29: 其他社会保障和就业支出 | F29: 0.34 | L29: 0.34 | M29: 0.34
A30: 213 | B30: 01 | C30: 10 | D30: 420005 | E30: 执法监管 | F30: 44.55 | L30: 44.55 | M30: 44.55
A31: 221 | B31: 02 | C31: 01 | D31: 420005 | E31: 住房公积金 | F31: 4.05 | L31: 4.05 | M31: 4.05
D32: 420006 | E32: 岳阳县畜禽良种繁殖场 | F32: 0.00
D33: 420007 | E33: 岳阳县养殖技术推广站 | F33: 92.24 | G33: 92.24 | H33: 71.95 | I33: 13.80 | J33: 6.49
A34: 208 | B34: 05 | C34: 05 | D34: 420007 | E34: 机关事业单位基本养老保险缴费支出 | F34: 8.66 | G34: 8.66 | I34: 8.66
A35: 208 | B35: 99 | C35: 99 | D35: 420007 | E35: 其他社会保障和就业支出 | F35: 0.54 | G35: 0.54 | I35: 0.54
A36: 210 | B36: 01 | C36: 01 | D36: 420007 | E36: 行政运行 | F36: 4.60 | G36: 4.60 | I36: 4.60
A37: 213 | B37: 01 | C37: 06 | D37: 420007 | E37: 科技转化与推广服务 | F37: 71.95 | G37: 71.95 | H37: 71.95
A38: 221 | B38: 02 | C38: 01 | D38: 420007 | E38: 住房公积金 | F38: 6.49 | G38: 6.49 | J38: 6.49
D39: 420008 | E39: 岳阳县畜禽水产品质量安全检验检测中心 | F39: 62.28 | G39: 62.28 | H39: 48.66 | I39: 9.26 | J39: 4.36
A40: 208 | B40: 05 | C40: 05 | D40: 420008 | E40: 机关事业单位基本养老保险缴费支出 | F40: 5.81 | G40: 5.81 | I40: 5.81
A41: 208 | B41: 99 | C41: 99 | D41: 420008 | E41: 其他社会保障和就业支出 | F41: 0.36 | G41: 0.36 | I41: 0.36
A42: 210 | B42: 11 | C42: 01 | D42: 420008 | E42: 行政单位医疗 | F42: 3.09 | G42: 3.09 | I42: 3.09
A43: 213 | B43: 01 | C43: 08 | D43: 420008 | E43: 病虫害控制 | F43: 48.66 | G43: 48.66 | H43: 48.66
A44: 221 | B44: 02 | C44: 01 | D44: 420008 | E44: 住房公积金 | F44: 4.36 | G44: 4.36 | J44: 4.36

Sheet 10工资福利
A2: 一般公共预算基本支出表--人员经费(工资福利支出)(按部门预算经济分类)
A3: 单位：420-岳阳县畜牧水产发展服务中心(汇总） | U3: 金额单位：万元
A4: 功能科目 | D4: 单位代码 | E4: 单位名称（功能科目） | F4: 总 计 | G4: 工资津补贴 | L4: 社会保障缴费 | R4: 住房公积金 | S4: 其他工资福利支出
A5: 类 | B5: 款 | C5: 项 | G5: 合计 | H5: 基本工资 | I5: 津贴补贴 | J5: 奖金 | K5: 绩效工资 | L5: 合计 | M5: 机关事业单位基本养老保险缴费 | N5: 职业年金缴费 | O5: 职工基本医疗保险缴费 | P5: 公务员医疗补助缴费 | Q5: 其他社会保障缴费 | S5: 合计 | T5: 伙食补助费 | U5: 医疗费 | V5: 其他工资福利支出
E6: 合计 | F6: =G6+L6+R6 -> 508.20 | G6: =G7 -> 260.05 | H6: =H7 -> 128.30 | I6: 61.69 | J6: 0 | K6: 70.06 | L6: 224.35 | M6: 205.50 | N6: 0 | O6: 14.88 | P6: 1.98 | Q6: 1.98 | R6: 23.80 | S6: 0 | T6: 0 | U6: 0 | V6: 0
D7: 420 | E7: 岳阳县畜牧水产发展服务中心 | F7: =F8+F14+F20+F26+F27+F32+F33+F39 -> 508.20 | G7: =G8+G14+G20+G26+G27+G32+G33+G39 -> 260.05 | H7: 128.30 | I7: 61.69 | J7: 0.00 | K7: 70.06 | L7: 224.35 | M7: 205.50 | N7: 0.00 | O7: 14.88 | P7: 1.98 | Q7: 1.98 | R7: 23.80
D8: 420001 | E8: 岳阳县畜牧水产发展服务中心 | F8: 173.76 | L8: 173.76 | M8: 173.76
A9: 208 | B9: 05 | C9: 05 | D9: 420001 | E9: 机关事业单位基本养老保险缴费支出 | F9: 16.31 | L9: 16.31 | M9: 16.31
A10: 208 | B10: 99 | C10: 99 | D10: 420001 | E10: 其他社会保障和就业支出 | F10: 1.02 | L10: 1.02 | M10: 1.02
A11: 210 | B11: 11 | C11: 01 | D11: 420001 | E11: 行政单位医疗 | F11: 8.67 | L11: 8.67 | M11: 8.67
A12: 213 | B12: 01 | C12: 01 | D12: 420001 | E12: 行政运行 | F12: 135.53 | L12: 135.53 | M12: 135.53
A13: 221 | B13: 02 | C13: 01 | D13: 420001 | E13: 住房公积金 | F13: 12.24 | L13: 12.24 | M13: 12.24
D14: 420002 | E14: 岳阳县动物疫病预防控制中心 | F14: 48.36 | G14: 37.27 | H14: 20.59 | I14: 7.72 | K14: 8.96 | L14: 7.54 | M14: 4.73 | O14: 2.22 | P14: 0.30 | Q14: 0.30 | R14: 3.55
A15: 208 | B15: 05 | C15: 05 | D15: 420002 | E15: 机关事业单位基本养老保险缴费支出 | F15: 4.73 | L15: 4.73 | M15: 4.73
A16: 208 | B16: 99 | C16: 99 | D16: 420002 | E16: 其他社会保障和就业支出 | F16: 0.30 | L16: 0.30 | Q16: 0.30
A17: 210 | B17: 11 | C17: 01 | D17: 420002 | E17: 行政单位医疗 | F17: 2.51 | L17: 2.51 | O17: 2.22 | P17: 0.30
A18: 213 | B18: 01 | C18: 08 | D18: 420002 | E18: 病虫害控制 | F18: 37.27 | G18: 37.27 | H18: 20.59 | I18: 7.72 | K18: 8.96
A19: 221 | B19: 02 | C19: 01 | D19: 420002 | E19: 住房公积金 | F19: 3.55 | R19: 3.55
D20: 420003 | E20: 岳阳县动物卫生监督所 | F20: 74.35 | G20: 57.61 | H20: 29.88 | I20: 12.99 | K20: 14.74 | L20: 11.38 | M20: 7.14 | O20: 3.35 | P20: 0.45 | Q20: 0.45 | R20: 5.35
A21: 201 | B21: 01 | C21: 01 | D21: 420003 | E21: 行政运行 | F21: 3.79 | L21: 3.79 | O21: 3.35 | P21: 0.45
A22: 208 | B22: 05 | C22: 05 | D22: 420003 | E22: 机关事业单位基本养老保险缴费支出 | F22: 7.14 | L22: 7.14 | M22: 7.14
A23: 208 | B23: 99 | C23: 99 | D23: 420003 | E23: 其他社会保障和就业支出 | F23: 0.45 | L23: 0.45 | Q23: 0.45
A24: 213 | B24: 01 | C24: 08 | D24: 420003 | E24: 病虫害控制 | F24: 57.61 | G24: 57.61 | H24: 29.88 | I24: 12.99 | K24: 14.74
A25: 221 | B25: 02 | C25: 01 | D25: 420003 | E25: 住房公积金 | F25: 5.35 | R25: 5.35
D26: 420004 | E26: 中洲渔场 | F26: 0.00
D27: 420005 | E27: 岳阳县渔政监督管理站 | F27: 57.21 | G27: 44.55 | H27: 21.46 | I27: 10.79 | K27: 12.30 | L27: 8.61 | M27: 5.40 | O27: 2.53 | P27: 0.34 | Q27: 0.34 | R27: 4.05
A28: 208 | B28: 05 | C28: 05 | D28: 420005 | E28: 机关事业单位基本养老保险缴费支出 | F28: 8.27 | L28: 8.27 | M28: 5.40 | O28: 2.53 | P28: 0.34
A29: 208 | B29: 99 | C29: 99 | D29: 420005 | E29: 其他社会保障和就业支出 | F29: 0.34 | L29: 0.34 | Q29: 0.34
A30: 213 | B30: 01 | C30: 10 | D30: 420005 | E30: 执法监管 | F30: 44.55 | G30: 44.55 | H30: 21.46 | I30: 10.79 | K30: 12.30
A31: 221 | B31: 02 | C31: 01 | D31: 420005 | E31: 住房公积金 | F31: 4.05 | R31: 4.05
D32: 420006 | E32: 岳阳县畜禽良种繁殖场 | F32: 0.00
D33: 420007 | E33: 岳阳县养殖技术推广站 | F33: 92.24 | G33: 71.95 | H33: 34.27 | I33: 17.86 | K33: 19.83 | L33: 13.80 | M33: 8.66 | O33: 4.06 | P33: 0.54 | Q33: 0.54 | R33: 6.49
A34: 208 | B34: 05 | C34: 05 | D34: 420007 | E34: 机关事业单位基本养老保险缴费支出 | F34: 8.66 | L34: 8.66 | M34: 8.66
A35: 208 | B35: 99 | C35: 99 | D35: 420007 | E35: 其他社会保障和就业支出 | F35: 0.54 | L35: 0.54 | Q35: 0.54
A36: 210 | B36: 01 | C36: 01 | D36: 420007 | E36: 行政运行 | F36: 4.60 | L36: 4.60 | O36: 4.06 | P36: 0.54
A37: 213 | B37: 01 | C37: 06 | D37: 420007 | E37: 科技转化与推广服务 | F37: 71.95 | G37: 71.95 | H37: 34.27 | I37: 17.86 | K37: 19.83
A38: 221 | B38: 02 | C38: 01 | D38: 420007 | E38: 住房公积金 | F38: 6.49 | R38: 6.49
D39: 420008 | E39: 岳阳县畜禽水产品质量安全检验检测中心 | F39: 62.28 | G39: 48.66 | H39: 22.08 | I39: 12.34 | K39: 14.24 | L39: 9.26 | M39: 5.81 | O39: 2.72 | P39: 0.36 | Q39: 0.36 | R39: 4.36
A40: 208 | B40: 05 | C40: 05 | D40: 420008 | E40: 机关事业单位基本养老保险缴费支出 | F40: 5.81 | L40: 5.81 | M40: 5.81
A41: 208 | B41: 99 | C41: 99 | D41: 420008 | E41: 其他社会保障和就业支出 | F41: 0.36 | L41: 0.36 | Q41: 0.36
A42: 210 | B42: 11 | C42: 01 | D42: 420008 | E42: 行政单位医疗 | F42: 3.09 | L42: 3.09 | O42: 2.72 | P42: 0.36
A43: 213 | B43: 01 | C43: 08 | D43: 420008 | E43: 病虫害控制 | F43: 48.66 | G43: 48.66 | H43: 22.08 | I43: 12.34 | K43: 14.24
A44: 221 | B44: 02 | C44: 01 | D44: 420008 | E44: 住房公积金 | F44: 4.36 | R44: 4.36

Sheet 11个人家庭(政府预算)
A2: 一般公共预算基本支出表--人员经费(对个人和家庭的补助)(按政府预算经济分类)
A3: 单位：420-岳阳县畜牧水产发展服务中心(汇总）阳县畜禽良种繁殖场,单位：420007-岳阳县养殖技术推广站,单位：420008-岳阳县畜禽水产品质量安全检验检测中心 | J3: 金额单位：万元
A4: 功能科目 | D4: 单位代码 | E4: 单位名称（功能科目） | F4: 总计 | G4: 社会福利和救济 | H4: 助学金 | I4: 个人农业生产补贴 | J4: 离退休费 | K4: 其他对个人和家庭的补助
A5: 类 | B5: 款 | C5: 项
E6: 合计 | F6: 0.00
A10: 注：本年度无对个人和家庭的补助支出预算安排，故本表无数据。

Sheet 12个人家庭
A2: 一般公共预算基本支出表--人员经费(对个人和家庭的补助)（按部门预算经济分类）
A3: 单位：420-岳阳县畜牧水产发展服务中心(汇总） | Q3: 金额单位：万元
A4: 功能科目 | D4: 单位代码 | E4: 单位名称（功能科目） | F4: 总计 | G4: 离休费 | H4: 退休费 | I4: 退职（役）费 | J4: 抚恤金 | K4: 生活补助 | L4: 救济费 | M4: 医疗费补助 | N4: 助学金 | O4: 奖励金 | P4: 代缴社会保险费 | Q4: 个人农业生产补贴 | R4: 其他对个人和家庭的补助
A5: 类 | B5: 款 | C5: 项
E6: 合计 | F6: 0.00
A10: 注：本年度无对个人和家庭的补助支出预算安排，故本表无数据。

Sheet 13商品服务(政府预算)
A2: 一般公共预算基本支出表--公用经费(商品和服务支出)（按政府预算经济分类）
A3: 单位：420-岳阳县畜牧水产发展服务中心(汇总） | S3: 金额单位：万元
A4: 功能科目 | D4: 单位代码 | E4: 单位名称（功能科目） | F4: 总计 | G4: 机关商品和服务支出 | R4: 对事业单位经常性补助
A5: 类 | B5: 款 | C5: 项 | G5: 合计 | H5: 办公经费 | I5: 会议费 | J5: 培训费 | K5: 专用材料购置费 | L5: 委托业务费 | M5: 公务接待费 | N5: 因公出国（境）费用 | O5: 公务用车运行维护费 | P5: 维修(护)费 | Q5: 其他商品和服务支出 | R5: 合计 | S5: 商品和服务支出 | T5: 其他对事业单位补助
E6: 合计 | F6: =G6+R6 -> 27.50 | G6: 15.12 | Q6: 15.12 | R6: =R7 -> 12.38 | S6: =S7 -> 12.38
D7: 420 | E7: 岳阳县畜牧水产发展服务中心 | F7: =G7+R7 -> 27.50 | G7: 15.12 | Q7: 15.12 | R7: =3.2+R8 -> 12.38 | S7: =3.2+S8 -> 12.38
D8: 420001 | E8: 岳阳县畜牧水产发展服务中心 | F8: 9.18 | R8: 9.18 | S8: 9.18
A9: 213 | B9: 01 | C9: 01 | D9: 420001 | E9: 行政运行 | F9: 9.18 | R9: 9.18 | S9: 9.18
D10: 420002 | E10: 岳阳县动物疫病预防控制中心 | F10: 2.16 | G10: 2.16 | Q10: 2.16
A11: 213 | B11: 01 | C11: 08 | D11: 420002 | E11: 病虫害控制 | F11: 2.16 | G11: 2.16 | Q11: 2.16
D12: 420003 | E12: 岳阳县动物卫生监督所 | F12: 3.78 | G12: 3.78 | Q12: 3.78
A13: 213 | B13: 01 | C13: 08 | D13: 420003 | E13: 病虫害控制 | F13: 3.78 | G13: 3.78 | Q13: 3.78
D14: 420004 | E14: 中洲渔场 | F14: 0.00
D15: 420005 | E15: 岳阳县渔政监督管理站 | F15: 3.20 | R15: 3.20 | S15: 3.20
A16: 213 | B16: 01 | C16: 10 | D16: 420005 | E16: 执法监管 | F16: 3.20 | R16: 3.20 | S16: 3.20
D17: 420006 | E17: 岳阳县畜禽良种繁殖场 | F17: 0.00
D18: 420007 | E18: 岳阳县养殖技术推广站 | F18: 5.40 | G18: 5.40 | Q18: 5.40
A19: 213 | B19: 01 | C19: 06 | D19: 420007 | E19: 科技转化与推广服务 | F19: 5.40 | G19: 5.40 | Q19: 5.40
D20: 420008 | E20: 岳阳县畜禽水产品质量安全检验检测中心 | F20: 3.78 | G20: 3.78 | Q20: 3.78
A21: 213 | B21: 01 | C21: 08 | D21: 420008 | E21: 病虫害控制 | F21: 3.78 | G21: 3.78 | Q21: 3.78

Sheet 14商品服务
A2: 一般公共预算基本支出表--公用经费(商品和服务支出)(按部门预算经济分类)
A3: 单位：420-岳阳县畜牧水产发展服务中心(汇总） | AF3: 金额单位：万元
A4: 功能科目 | D4: 单位代码 | E4: 单位名称（功能科目） | F4: 总 计 | G4: 办公费 | H4: 印刷费 | I4: 咨询费 | J4: 手续费 | K4: 水费 | L4: 电费 | M4: 邮电费 | N4: 取暖费 | O4: 物业管理费 | P4: 差旅费 | Q4: 因公出国（境）费用 | R4: 维修(护)费 | S4: 租赁费 | T4: 会议费 | U4: 培训费 | V4: 公务接待费 | W4: 专用材料费 | X4: 被装购置费 | Y4: 专用燃料费 | Z4: 劳务费 | AA4: 委托业务费 | AB4: 工会经费 | AC4: 福利费 | AD4: 公务用车运行维护费 | AE4: 其他交通费用 | AF4: 税金及附加费用 | AG4: 其他商品和服务支出
A5: 类 | B5: 款 | C5: 项
E6: 合计 | F6: =F8+F10+F12+F18+F15+F20 -> 27.50 | G6: =G9+G11+G13+G14+G16+G17+G19+G21 -> 3.58 | H6: =H9+H11+H13+H14+H16+H17+H19+H21 -> 1.49 | I6: 0 | J6: 0 | K6: 0.49 | L6: 2.06 | M6: 3.43 | N6: 0 | O6: 2.39 | P6: 5.31 | Q6: 0 | R6: 1.19 | S6: 0 | T6: 0 | U6: 1.56 | V6: 3.67 | W6: 0 | X6: 0 | Y6: 0 | Z6: 0 | AA6: 0 | AB6: 0 | AC6: 0 | AD6: 0 | AE6: 0 | AF6: 0 | AG6: 2.33
D7: 420 | E7: 岳阳县畜牧水产发展服务中心 | F7: =F9+F11+F13+F19+F16+F21 -> 27.50 | G7: =G8+G10+G12+G14+G15+G17+G18+G20 -> 3.58 | H7: =H8+H10+H12+H14+H15+H17+H18+H20 -> 1.49 | K7: =K8+K10+K12+K14+K15+K17+K18+K20 -> 0.49 | L7: =L8+L10+L12+L14+L15+L17+L18+L20 -> 2.06 | M7: =M8+M10+M12+M14+M15+M17+M18+M20 -> 3.43 | O7: =O8+O10+O12+O14+O15+O17+O18+O20 -> 2.39 | P7: =P8+P10+P12+P14+P15+P17+P18+P20 -> 5.31 | R7: =R8+R10+R12+R14+R15+R17+R18+R20 -> 1.19 | U7: =U8+U10+U12+U14+U15+U17+U18+U20 -> 1.56 | V7: =V8+V10+V12+V14+V15+V17+V18+V20 -> 3.67 | AG7: =AG8+AG10+AG12+AG14+AG15+AG17+AG18+AG20 -> 2.33
D8: 420001 | E8: 岳阳县畜牧水产发展服务中心 | F8: 9.18 | G8: 1.13 | H8: 0.25 | K8: 0.18 | L8: 0.76 | M8: 1.26 | O8: 0.88 | P8: 1.51 | R8: 0.25 | U8: 0.45 | V8: 0.63 | AG8: 1.88
A9: 213 | B9: 01 | C9: 01 | D9: 420001 | E9: 行政运行 | F9: 9.18 | G9: 1.13 | H9: 0.25 | K9: 0.18 | L9: 0.76 | M9: 1.26 | O9: 0.88 | P9: 1.51 | R9: 0.25 | U9: 0.45 | V9: 0.63 | AG9: 1.88
D10: 420002 | E10: 岳阳县动物疫病预防控制中心 | F10: 2.16 | G10: 0.32 | H10: 0.07 | K10: 0.05 | L10: 0.22 | M10: 0.36 | O10: 0.25 | P10: 0.43 | R10: 0.07 | U10: 0.13 | V10: 0.18 | AG10: 0.08
A11: 213 | B11: 01 | C11: 08 | D11: 420002 | E11: 病虫害控制 | F11: 2.16 | G11: 0.32 | H11: 0.07 | K11: 0.05 | L11: 0.22 | M11: 0.36 | O11: 0.25 | P11: 0.43 | R11: 0.07 | U11: 0.13 | V11: 0.18 | AG11: 0.08
D12: 420003 | E12: 岳阳县动物卫生监督所 | F12: 3.78 | G12: 0.57 | H12: 0.13 | K12: 0.09 | L12: 0.38 | M12: 0.63 | O12: 0.44 | P12: 0.76 | R12: 0.13 | U12: 0.22 | V12: 0.32 | AG12: 0.11
A13: 213 | B13: 01 | C13: 08 | D13: 420003 | E13: 病虫害控制 | F13: 3.78 | G13: 0.57 | H13: 0.13 | K13: 0.09 | L13: 0.38 | M13: 0.63 | O13: 0.44 | P13: 0.76 | R13: 0.13 | U13: 0.22 | V13: 0.32 | AG13: 0.11
D14: 420004 | E14: 中洲渔场 | F14: 0.00
D15: 420005 | E15: 岳阳县渔政监督管理站 | F15: 3.20 | G15: 0.49 | H15: 0.11 | K15: 0.08 | L15: 0.32 | M15: 0.45 | O15: 0.38 | P15: 0.65 | R15: 0.11 | U15: 0.19 | V15: 0.27 | AG15: 0.15
A16: 213 | B16: 01 | C16: 10 | D16: 420005 | E16: 执法监管 | F16: 3.20 | G16: 0.49 | H16: 0.11 | K16: 0.08 | L16: 0.32 | M16: 0.45 | O16: 0.38 | P16: 0.65 | R16: 0.11 | U16: 0.19 | V16: 0.27 | AG16: 0.15
D17: 420006 | E17: 岳阳县畜禽良种繁殖场 | F17: 0.00
D18: 420007 | E18: 岳阳县养殖技术推广站 | F18: 5.40 | G18: 0.50 | H18: 0.80 | M18: 0.10 | P18: 1.20 | R18: 0.50 | U18: 0.35 | V18: 1.95 | AG18: =5.4-V18-U18-R18-P18-M18-H18-G18 -> 0.00
A19: 213 | B19: 01 | C19: 06 | D19: 420007 | E19: 科技转化与推广服务 | F19: 5.40 | G19: 0.50 | H19: 0.80 | M19: 0.10 | P19: 1.20 | R19: 0.50 | U19: 0.35 | V19: 1.95 | AG19: =5.4-V19-U19-R19-P19-M19-H19-G19 -> 0.00
D20: 420008 | E20: 岳阳县畜禽水产品质量安全检验检测中心 | F20: 3.78 | G20: 0.57 | H20: 0.13 | K20: 0.09 | L20: 0.38 | M20: 0.63 | O20: 0.44 | P20: 0.76 | R20: 0.13 | U20: 0.22 | V20: 0.32 | AG20: 0.11
A21: 213 | B21: 01 | C21: 08 | D21: 420008 | E21: 病虫害控制 | F21: 3.78 | G21: 0.57 | H21: 0.13 | K21: 0.09 | L21: 0.38 | M21: 0.63 | O21: 0.44 | P21: 0.76 | R21: 0.13 | U21: 0.22 | V21: 0.32 | AG21: 0.11

Sheet 15三公
A2: 一般公共预算“三公”经费支出表
A3: 单位：420-岳阳县畜牧水产发展服务中心(汇总） | G3: 金额单位：万元
A4: 单位编码 | B4: 单位名称 | C4: “三公”经费合计 | D4: 因公出国（境）费 | E4: 公务用车购置及运行费 | H4: 公务接待费
E5: 小计 | F5: 公务用车购置费 | G5: 公务用车运行费
B6: 合计 | C6: =D6+E6+H6 -> 4.86 | D6: 0 | E6: 0 | F6: 0 | G6: 0 | H6: =H7 -> 4.86
A7: 420 | B7: 岳阳县畜牧水产发展服务中心 | C7: =D7+E7+H7 -> 4.86 | H7: =SUM(H8:H8) -> 4.86
A8: 420001 | B8: 岳阳县畜牧水产发展服务中心 | C8: =D8+E8+H8 -> 4.86 | H8: 4.86

Sheet 16政府性基金
A2: 政府性基金预算支出表
A3: 单位：420-岳阳县畜牧水产发展服务中心(汇总） | G3: 金额单位：万元
A4: 科目编码 | B4: 科目名称 | C4: 合计 | D4: 本年政府性基金预算支出 | H4: 项目支出
D5: 小计 | E5: 人员经费 | G5: 公用经费
E6: 工资福利支出 | F6: 对个人和家庭的补助
B7: 合计 | C7: 0.00
A13: 注：本年度无政府性基金预算支出，故本表无数据。

Sheet 17政府性基金(政府预算)
A2: 政府性基金预算支出分类汇总表（按政府预算经济分类）
A3: 单位：420-岳阳县畜牧水产发展服务中心(汇总） | S3: 金额单位：万元
A4: 功能科目 | D4: 单位代码 | E4: 单位名称（功能科目） | F4: 总 计 | G4: 机关工资福利支出 | H4: 机关商品和服务支出 | I4: 机关资本性支出(一) | J4: 机关资本性支出(二) | K4: 对事业单位经常性补助 | L4: 对事业单位资本性补助 | M4: 对企业补助 | N4: 对企业资本性支出 | O4: 对个人和家庭的补助 | P4: 对社会保障基金补助 | Q4: 债务利息及费用支出 | R4: 债务还本支出 | S4: 转移性支出 | T4: 其他支出
A5: 类 | B5: 款 | C5: 项
E6: 合计 | F6: 0.00
A10: 注：本年度无政府性基金预算支出，故本表无数据。

Sheet 18政府性基金（部门预算）
A2: 政府性基金预算支出分类汇总表（按部门预算经济分类）
A3: 单位：420-岳阳县畜牧水产发展服务中心(汇总） | P3: 金额单位：万元
A4: 功能科目 | D4: 单位代码 | E4: 单位名称（功能科目） | F4: 总 计 | G4: 基本支出 | K4: 项目支出
A5: 类 | B5: 款 | C5: 项 | G5: 合计 | H5: 工资福利支出 | I5: 一般商品和服务支出 | J5: 对个人和家庭的补助 | K5: 合计 | L5: 按项目管理的商品和服务支出 | M5: 按项目管理的对个人和家庭的补助 | N5: 债务利息及费用支出 | O5: 资本性支出（基本建设） | P5: 资本性支出 | Q5: 对企业补助（基本建设） | R5: 对企业补助 | S5: 对社会保障基金补助 | T5: 其他支出
E6: 合计 | F6: 0.00
A10: 注：本年度无政府性基金预算支出，故本表无数据。

Sheet 19国有资本经营预算
A2: 国有资本经营预算支出表
A3: 单位：420-岳阳县畜牧水产发展服务中心(汇总） | H3: 金额单位：万元
A4: 科目编码 | B4: 科目名称 | C4: 合计 | D4: 本年国有资本经营预算支出 | H4: 项目支出
D5: 小计 | E5: 人员经费 | G5: 公用经费
E6: 工资福利支出 | F6: 对个人和家庭的补助
B7: 合计 | C7: 0.00
A13: 注：本年度无国有资本经营预算支出，故本表无数据。

Sheet 20财政专户管理资金
A2: 财政专户管理资金预算支出表
A3: 单位：420-岳阳县畜牧水产发展服务中心(汇总） | H3: 金额单位：万元
A4: 科目编码 | B4: 科目名称 | C4: 合计 | D4: 本年财政专户管理资金预算支出 | H4: 项目支出
D5: 小计 | E5: 人员经费 | G5: 公用经费
E6: 工资福利支出 | F6: 对个人和家庭的补助
B7: 合计 | C7: 0.00
A13: 注：本年度无财政专户管理资金预算支出，故本表无数据。

Sheet 21专项清单
A2: 专项资金预算汇总表
A3: 单位：420-岳阳县畜牧水产发展服务中心(汇总） | N3: 金额单位：万元
A4: 单位代码 | C4: 单位名称（专项名称） | D4: 预算额度 | N4: 预算编制方式
D5: 总计 | E5: 一般公共预算 | K5: 政府性基金 | L5: 国有资本经营预算 | M5: 社会保险基金预算资金 | N5: 编入部门预算金额 | O5: 财政代编金额
E6: 一般公共预算小计 | F6: 经费拨款 | G6: 纳入一般公共预算管理的非税收入 | H6: 一般债券 | I6: 外国政府和国际组织贷款 | J6: 外国政府和国际组织赠款
C7: 合计 | D7: =D8 -> 414.40 | E7: =E8 -> 414.40 | F7: =F8 -> 414.40 | N7: =N8 -> 414.40
A8: 420 | C8: 岳阳县畜牧水产发展服务中心 | D8: =D9+D10+D11+D12+D13+D14+D15+D16+D17+D18+D19 -> 414.40 | E8: =E9+E10+E11+E12+E13+E14+E15+E16+E17+E18+E19 -> 414.40 | F8: =F9+F10+F11+F12+F13+F14+F15+F16+F17+F18+F19 -> 414.40 | N8: =N9+N10+N11+N12+N13+N14+N15+N16+N17+N18+N19 -> 414.40
A9: 420001 | B9: 运转其他类检疫及检测 | C9: 检疫及检测 | D9: 56.00 | E9: 56.00 | F9: 56.00 | N9: 56.00
A10: 420001 | B10: 运转其他类农产品质量安全检验检测 | C10: 农产品质量安全检验检测 | D10: 54.00 | E10: 54.00 | F10: 54.00 | N10: 54.00
A11: 420001 | B11: 运转其他类屠宰场驻场官方兽医检疫 | C11: 屠宰场驻场官方兽医检疫 | D11: 18.00 | E11: 18.00 | F11: 18.00 | N11: 18.00
A12: 420001 | B12: 运转其他类新墙河流域禁捕 | C12: 新墙河流域禁捕 | D12: 30.00 | E12: 30.00 | F12: 30.00 | N12: 30.00
A13: 420001 | B13: 运转其他类养殖技术推广 | C13: 养殖技术推广 | D13: 4.00 | E13: 4.00 | F13: 4.00 | N13: 4.00
A14: 420001 | B14: 运转其他类渔政执法专项 | C14: 渔政执法专项 | D14: 24.00 | E14: 24.00 | F14: 24.00 | N14: 24.00
A15: 420001 | B15: 运转其他类重大动物疫苗购置 | C15: 重大动物疫苗购置 | D15: 30.00 | E15: 30.00 | F15: 30.00 | N15: 30.00
A16: 420003 | B16: 运转其他类动物防疫检测 | C16: 动物防疫检测 | D16: 35.00 | E16: 35.00 | F16: 35.00 | N16: 35.00
A17: 420004 | B17: 运转其他类岳阳县中洲渔场 | C17: 岳阳县中洲渔场 | D17: 105.40 | E17: 105.40 | F17: 105.40 | N17: 105.40
A18: 420006 | B18: 运转其他类岳阳县畜禽良种繁殖场 | C18: 岳阳县畜禽良种繁殖场 | D18: 48.00 | E18: 48.00 | F18: 48.00 | N18: 48.00
A19: 420008 | B19: 运转其他类畜禽水产品检测 | C19: 畜禽水产品检测 | D19: 10.00 | E19: 10.00 | F19: 10.00 | N19: 10.00

Sheet 22项目支出绩效目标表
C2: 项目支出绩效目标表
A3: 单位：420-岳阳县畜牧水产发展服务中心(汇总） | L3: 金额单位：万元
A4: 单位代码 | B4: 单位（专项）名称 | C4: 资金总额 | D4: 实施期绩效目标 | E4: 绩效指标
E5: 一级指标 | F5: 二级指标 | G5: 三级指标 | H5: 指标值 | I5: 指标值内容 | J5: 评（扣分标准） | K5: 度量单位 | L5: 指标值类型 | M5: 备注
A6: 420 | B6: 岳阳县畜牧水产发展服务中心 | C6: =SUM(C7:C116) -> 414.40
A7: 420001 | B7: 检疫及检测 | C7: 56.00 | D7: 抓质量，保安全，促发展，强质检 | E7: 产出指标 | F7: 数量指标 | G7: 覆盖率达100% | H7: ≤560000 | I7: 实地考察，严格核实 | J7: 未过到评判标准扣10分 | K7: 元 | L7: 定量
F8: 生态环境成本指标 | G8: 无 | H8: 0 | I8: 无 | J8: 无
F9: 社会成本指标 | G9: 无 | H9: 0 | I9: 无 | J9: 无
F10: 质量指标 | G10: 保障检测快、准、全 | H10: % | I10: 保障检测快 | J10: 未过到评判标准扣10分 | K10: % | L10: 定性
F11: 经济成本指标 | G11: 促发展，强质检 | H11: ≤560000 | I11: 控制检疫安全，保障检测水平 | J11: 未过到评判标准扣10分 | K11: 元 | L11: ≤
F12: 时效指标 | G12: 检测时间 | H12: 1-12月 | I12: 2022年1月-12月 | J12: 未过到评判标准扣10分 | K12: 月 | L12: 定性
E13: 效益指标 | F13: 经济效益指标 | G13: 优化检疫率 | H13: % | I13: 促进地方经济发展 | J13: 未过到评判标准扣10分 | K13: 元 | L13: 定量
F14: 社会效益指标 | G14: 预防性、预见性、彻底性 | H14: % | I14: 有效拦截传播疾病 | J14: 未过到评判标准扣10分 | K14: % | L14: 定量
F15: 生态效益指标 | G15: 有效杜绝病虫害 | H15: % | I15: 有效杜绝传播疾病 | J15: 未过到评判标准扣10分 | K15: % | L15: 定量
E16: 满意度指标 | F16: 服务对象满意度指标 | G16: 群众满意度 | H16: ≥90% | I16: 服务满意度 | J16: 未过到评判标准扣10分 | K16: % | L16: ≥
A17: 420001 | B17: 农产品质量安全检验检测 | C17: 54.00 | D17: 落实监管责任，全面掌握农产品质量安全状况，推进农产品质检机构建设 | E17: 产出指标 | F17: 生态环境成本指标 | G17: 无 | H17: 0 | I17: 无 | J17: 无
F18: 社会成本指标 | G18: 无 | H18: 0 | I18: 无 | J18: 无
F19: 经济成本指标 | G19: 农产品质量安全检验检测 | H19: ≤540000元 | I19: 严格控制非生产性开支 | J19: 未达指标值扣分 | K19: 元 | L19: ≤
F20: 时效指标 | G20: 农产品质量安全检验检测时间 | H20: 1-12月 | I20: 2022年1月-12月 | J20: 未达指标值扣分 | K20: 月 | L20: 定性
F21: 数量指标 | G21: 保证产品数量大幅增加 | H21: ≤540000元 | I21: 实现效益持续增加 | J21: 未达指标值扣分 | K21: 元 | L21: 定量
F22: 质量指标 | G22: 提高商品化率 | H22: ≥90% | I22: 合格 | J22: 未达指标值扣分 | K22: % | L22: 定性
E23: 满意度指标 | F23: 服务对象满意度指标 | G23: 服务满意度 | H23: ≥90% | I23: 服务满意度 | J23: 未达指标值扣分 | K23: % | L23: ≥
E24: 效益指标 | F24: 生态效益指标 | G24: 确保不发生农业生产造成环境破坏事件 | H24: ≥90% | I24: 保持环境污染零投诉 | J24: 未达指标值扣分 | K24: % | L24: 定性
F25: 社会效益指标 | G25: 注重实效，整体提升 | H25: ≥90% | I25: 确保检验检测工作游戏运行 | J25: 未达指标值扣分 | K25: % | L25: 定性
F26: 经济效益指标 | G26: 加强风险排查和研判 | H26: ≥90% | I26: 加强农产品质量安全检验检测工作 | J26: 未达指标值扣分 | K26: % | L26: 定性
A27: 420001 | B27: 屠宰场驻场官方兽医检疫 | C27: 18.00 | D27: 强化监督管理，保障屠宰环节肉品质量安全和公共卫生安全 | E27: 产出指标 | F27: 数量指标 | G27: 屠宰场驻场官方兽医检疫 | H27: ≤180000元 | I27: 实地考察，严格核实 | J27: 未达指标值扣分 | K27: 元 | L27: ≤
F28: 经济成本指标 | G28: 严格把关检疫病症 | H28: ≤180000元 | I28: 加强屠宰场督导检查 | J28: 未达指标值扣分 | K28: 元 | L28: ≤
F29: 社会成本指标 | G29: 无 | H29: 0 | I29: 无 | J29: 无 | K29: 0
F30: 生态环境成本指标 | G30: 无 | H30: 0 | I30: 无 | J30: 0 | K30: 0
F31: 时效指标 | G31: 检疫时间 | H31: 1-12月 | I31: 2022年1月-12月 | J31: 未达指标值扣分 | K31: 月 | L31: 定量
F32: 质量指标 | G32: 严格执行检疫规程检疫达标 | H32: 98% | I32: 检疫规程合规 | J32: 未达指标值扣分 | K32: % | L32: 定性
E33: 满意度指标 | F33: 服务对象满意度指标 | G33: 服务满意度 | H33: ≥90% | I33: 服务满意度 | J33: 未达指标值扣分 | K33: % | L33: ≥
E34: 效益指标 | F34: 社会效益指标 | G34: 保障屠宰环节肉品质量达标 | H34: ≥98% | I34: 落实检疫 | J34: 未达指标值扣分 | K34: % | L34: 定性
F35: 经济效益指标 | G35: 确保食品安全达标 | H35: ≥98% | I35: 促进地方经济发展 | J35: 未达指标值扣分 | K35: % | L35: 定量
F36: 生态效益指标 | G36: 保障公共卫生检疫环境达标 | H36: ≥98% | I36: 突出特色保护生态环境 | J36: 未达指标值扣分 | K36: % | L36: 定性
A37: 420001 | B37: 新墙河流域禁捕 | C37: 30.00 | D37: 严厉打击非法捕捞行为，切实保护渔业资源和生态环境，促进生态文明建设和渔业经济可持续发展 | E37: 产出指标 | F37: 时效指标 | G37: 新墙河流域禁捕时间 | H37: 1-12月 | I37: 2022年1月-12月 | J37: 未达到指标值扣分 | K37: 月 | L37: 定性
F38: 经济成本指标 | G38: 严厉打击非法、违禁捕捞行为 | H38: ≤300000元 | I38: 严厉打击非法捕捞行为 | J38: 未达到指标值扣分 | K38: 元 | L38: ≤
F39: 社会成本指标 | G39: 无 | H39: 0 | I39: 无 | J39: 无
F40: 生态环境成本指标 | G40: 无 | H40: 0 | I40: 无 | J40: 无
F41: 数量指标 | G41: 常态化巡查执法行动 | H41: ≤300000元 | I41: 坚持驻点值守 | J41: 未达到指标值扣分 | K41: 元 | L41: ≤
F42: 质量指标 | G42: 做好捕捞管控 | H42: 合格 | I42: 维护新墙河禁渔禁捕秩序 | J42: 未达到指标值扣分 | K42: % | L42: 定量
E43: 效益指标 | F43: 经济效益指标 | G43: 促进渔业经济可持续发展 | H43: % | I43: 规范行业管理 | J43: 未达到指标值扣分 | K43: % | L43: 定量
F44: 社会效益指标 | G44: 切实保护渔业资源 | H44: % | I44: 切实保护渔业资源 | J44: 未达到指标值扣分 | K44: % | L44: 定量
F45: 生态效益指标 | G45: 促进生态文明建设 | H45: % | I45: 切实防范电鱼等违法行为 | J45: 未达到指标值扣分 | K45: % | L45: 定量
E46: 满意度指标 | F46: 服务对象满意度指标 | G46: 职工满意度 | H46: ≥90% | I46: ≥90% | J46: 未达到指标值扣分 | K46: % | L46: ≥
A47: 420001 | B47: 养殖技术推广 | C47: 4.00 | D47: 保持定发展养殖业稳定，进一步优化养殖产业结构 | E47: 效益指标 | F47: 经济效益指标 | G47: 保持定发展养殖业稳 | H47: % | I47: 促进地方经济发展 | J47: 未过到评判标准扣10分 | K47: % | L47: 定量
F48: 社会效益指标 | G48: 促进养殖业持续发展 | H48: % | I48: 解决养殖技术推广问题 | J48: 未过到评判标准扣10分 | K48: % | L48: 定量
F49: 生态效益指标 | G49: 可持续发展 | H49: % | I49: 突出特色保护生态环境 | J49: 未过到评判标准扣10分 | K49: % | L49: 定量
E50: 产出指标 | F50: 经济成本指标 | G50: 优化养殖技术结构 | H50: ≤40000元 | I50: 严格控制非生产性开支 | J50: 未过到评判标准扣10分 | K50: 元 | L50: ≤
F51: 质量指标 | G51: 实施科学规范制度化管理 | H51: 合格 | I51: 合格 | J51: 未过到评判标准扣10分 | K51: % | L51: 定性
F52: 数量指标 | G52: 养殖技术推广培训达5次 | H52: ≤40000 | I52: 实地考察，严格核实 | J52: 未过到评判标准扣10分 | K52: 元 | L52: 定量
F53: 生态环境成本指标 | G53: 无 | H53: 0 | I53: 无 | J53: 无
F54: 社会成本指标 | G54: 无 | H54: 0 | I54: 无 | J54: 无
F55: 时效指标 | G55: 养殖技术培训时间 | H55: 1-12月 | I55: 2022年1月-12月 | J55: 未过到评判标准扣10分 | K55: 月 | L55: 定性
E56: 满意度指标 | F56: 服务对象满意度指标 | G56: 服务满意度 | H56: ≥90% | I56: 服务满意度 | J56: 未过到评判标准扣10分 | K56: % | L56: ≥
A57: 420001 | B57: 渔政执法专项 | C57: 24.00 | D57: 推进渔业高质量发展 | E57: 产出指标 | F57: 生态环境成本指标 | G57: 无 | H57: 0 | I57: 无 | J57: 无 | L57: 定量
F58: 社会成本指标 | G58: 无 | H58: 0 | I58: 无 | J58: 无 | L58: 定量
F59: 经济成本指标 | G59: 渔业高质量发展 | H59: ≤240000 | I59: 强化渔政执法力度 | J59: 未达到指标值扣分 | K59: 元 | L59: ≤
F60: 数量指标 | G60: 渔政执法成常态趋势 | H60: ≤240000元 | I60: 落实属地管理原则 | J60: 未达到指标值扣分 | K60: 元 | L60: ≤
F61: 质量指标 | G61: 全覆盖 | H61: 合格 | I61: 合格 | J61: 未达到指标值扣分 | K61: % | L61: 定性
F62: 时效指标 | G62: 执法时间 | H62: 1-12月 | I62: 2022年1月-12月 | J62: 未达到指标值扣分 | K62: 月 | L62: 定量
E63: 满意度指标 | F63: 服务对象满意度指标 | G63: 服务满意度 | H63: ≥90% | I63: 服务满意度 | J63: 未达到指标值扣分 | K63: % | L63: ≥
E64: 效益指标 | F64: 生态效益指标 | G64: 确保水生生物平衡发展 | H64: % | I64: 水生生物平衡发展 | J64: 未达到指标值扣分 | K64: % | L64: 定性
F65: 社会效益指标 | G65: 保障渔业健康发展 | H65: % | I65: 保障渔业健康发展 | J65: 未达到指标值扣分 | K65: % | L65: 定性
F66: 经济效益指标 | G66: 促进渔业持续发展 | H66: % | I66: 促进渔业经济发展 | J66: 未达到指标值扣分 | K66: % | L66: 定量
A67: 420001 | B67: 重大动物疫苗购置 | C67: 30.00 | D67: 保护生态环境，预防动物疫病传播 | E67: 效益指标 | F67: 社会效益指标 | G67: 预防动物疫病，保证动物存栏量 | H67: ≥90% | I67: 解决购置问题 | J67: 未过到评判标准扣10分 | K67: % | L67: 定性
F68: 经济效益指标 | G68: 购置重大动物疫苗625万份 | H68: ≥70% | I68: 畜禽免疫体水平达70% | J68: 未过到评判标准扣10分 | K68: % | L68: ≥
F69: 生态效益指标 | G69: 无 | H69: 无 | I69: 无 | J69: 无 | L69: 定性
E70: 产出指标 | F70: 时效指标 | G70: 重大动物疫苗购置时间 | H70: 1-12月 | I70: 2022年1月-12月 | J70: 未过到评判标准扣10分 | K70: 月 | L70: 定量
F71: 经济成本指标 | G71: 预算控制数 | H71: ≤300000元 | I71: 严格控制非生产性开支 | J71: 未过到评判标准扣10分 | K71: 元 | L71: ≤
F72: 社会成本指标 | G72: 无 | H72: 0 | I72: 无 | J72: 无
F73: 生态环境成本指标 | G73: 无 | H73: 0 | I73: 无 | J73: 无
F74: 质量指标 | G74: 疫苗存活率 | H74: ≥96% | I74: 疫苗存活度 | J74: 未过到评判标准扣10分 | K74: % | L74: ≥
F75: 数量指标 | G75: 重大动物疫苗购置数量 | H75: ≤300000 | I75: 实地考察，严格核实 | J75: 未过到评判标准扣10分 | K75: 元 | L75: ≤
E76: 满意度指标 | F76: 服务对象满意度指标 | G76: 服务满意度 | H76: ≥90% | I76: 服务满意度 | J76: 未过到评判标准扣10分 | K76: % | L76: ≥
A77: 420003 | B77: 动物防疫检测 | C77: 35.00 | D77: 有效防控重大动物疫病，稳定控制人畜共患病，切实保障畜牧业生产安全。 | E77: 效益指标 | F77: 生态效益指标 | G77: 病死牲畜造成环境污染情况 | H77: ≥96% | I77: 未发生病死牲畜乱丢等环境污染事件 | J77: 未达指标值扣分 | K77: % | L77: 定量
F78: 经济效益指标 | G78: 养殖场疫情稳定新增效益百分比 | H78: ≥96% | I78: 促进地方经济发展 | J78: 未达指标值扣分 | K78: % | L78: 定量
F79: 社会效益指标 | G79: 动物防疫检测 | H79: ≥96% | I79: 生猪产能稳定增长 | J79: 未达指标值扣分 | K79: % | L79: 定量
E80: 产出指标 | F80: 时效指标 | G80: 按照规定的时间节点完成春秋两季防疫 | H80: 月 | I80: 2022年1月-12月 | J80: 未达指标值扣分 | K80: 月 | L80: 定性
F81: 质量指标 | G81: 生猪养殖场强制免疫 | H81: 100% | I81: 合格率 | J81: 未达指标值扣分 | K81: % | L81: 定量
F82: 数量指标 | G82: 规模养殖场牲畜无害化处理 | H82: 100% | I82: 牲畜无害化处理 | J82: 未达指标值扣分 | K82: % | L82: 定量
F83: 经济成本指标 | G83: 动物防疫检测 | H83: ≤350000 | I83: 严格控制非项目开支 | J83: 未达指标值扣分 | K83: 元 | L83: ≤
F84: 社会成本指标 | G84: 无 | H84: 无 | I84: 无 | J84: 无
F85: 生态环境成本指标 | G85: 无 | H85: 无 | I85: 无 | J85: 无
E86: 满意度指标 | F86: 服务对象满意度指标 | G86: 养殖户满意度 | H86: ≥96% | I86: 满意度 | J86: 未达指标值扣分 | K86: % | L86: ≥
A87: 420004 | B87: 岳阳县中洲渔场 | C87: 105.40 | D87: 持续提升 | E87: 产出指标 | F87: 社会成本指标 | G87: 无 | H87: 0 | I87: 无 | J87: 无
F88: 生态环境成本指标 | G88: 无 | H88: 0 | I88: 无 | J88: 无
F89: 数量指标 | G89: 渔业产出量 | H89: ≤1045000元 | I89: 严格核实 | J89: 未达指标值扣分 | K89: 元 | L89: 定量
F90: 质量指标 | G90: 养殖治理落到实处 | H90: ≥90% | I90: 规范管控 | J90: 未达指标值扣分 | K90: % | L90: 定量
F91: 经济成本指标 | G91: 预算控制数 | H91: ≤1045000 | I91: 压缩非生产性开支 | J91: 未达指标值扣分 | K91: 元 | L91: ≤
F92: 时效指标 | G92: 时间 | H92: 1-12月 | I92: 2022年1月-12月 | J92: 未达指标值扣分 | K92: 年 | L92: 定性
E93: 效益指标 | F93: 经济效益指标 | G93: 促进渔业可持续发展 | H93: ≥90% | I93: 促进渔业可持续发展 | J93: 未达指标值扣分 | K93: % | L93: 定量
F94: 社会效益指标 | G94: 促进渔业结构调整和转型升级 | H94: ≥90% | I94: 解决问题 | J94: 未达指标值扣分 | K94: % | L94: 定量
F95: 生态效益指标 | G95: 渔业健康发展 | H95: ≥90% | I95: 确保生态环境养殖要求落到实处 | J95: 未达指标值扣分 | K95: % | L95: 定性
E96: 满意度指标 | F96: 服务对象满意度指标 | G96: 职工满意度 | H96: ≥90% | I96: ≥90% | J96: 未达指标值扣分 | K96: % | L96: ≥
A97: 420006 | B97: 岳阳县畜禽良种繁殖场 | C97: 48.00 | D97: 落实国家畜禽遗传资源保护制度，促进畜牧业持续健康发展 | E97: 产出指标 | F97: 生态环境成本指标 | G97: 无 | H97: 0 | I97: 无 | J97: 无
F98: 经济成本指标 | G98: 岳阳县良畜禽种繁殖场 | H98: ≤480000 | I98: 严格控制非生产性开支 | J98: 未达指准值扣分 | K98: 元 | L98: ≤
F99: 时效指标 | G99: 时间成本 | H99: 1-12月 | I99: 2022年1月-12月 | J99: 未达指准值扣分 | K99: 月 | L99: 定性
F100: 质量指标 | G100: 提高肉类产品质量 | H100: % | I100: 提高肉类产品质量 | J100: 未达指准值扣分 | K100: % | L100: 定量
F101: 数量指标 | G101: 保证存栏量 | H101: ≤480000 | I101: 保证存栏量 | J101: 未达指准值扣分 | K101: 元 | L101: 定量
F102: 社会成本指标 | G102: 无 | H102: 0 | I102: 无 | J102: 无
E103: 满意度指标 | F103: 服务对象满意度指标 | G103: 群众满意度 | H103: ≥90% | I103: 群众满意度 | J103: 未达指准值扣分 | K103: % | L103: ≥
E104: 效益指标 | F104: 生态效益指标 | G104: 达到生态环境质量标准 | H104: ≥90% | I104: 达到生态环境质量标准 | J104: 未达指准值扣分 | K104: % | L104: 定量
F105: 社会效益指标 | G105: 创新资源优势和社会优势 | H105: ≥90% | I105: 加强技术优势 | J105: 未达指准值扣分 | K105: % | L105: 定量
F106: 经济效益指标 | G106: 推进产业发展 | H106: ≥90% | I106: 促进经济结构调整 | J106: 未达指准值扣分 | K106: % | L106: 定量
A107: 420008 | B107: 畜禽水产品检测 | C107: 10.00 | D107: 通过长期畜禽水产品质量安全监管，提高全县畜禽水产品的质量，加强畜禽水产品质量安全监管，确保全县无畜禽水产品质量安全事故，确保广大群众吃上放心肉，确保人民群众食肉安全。 | E107: 满意度指标 | F107: 服务对象满意度指标 | G107: 畜禽水产品检测 | H107: ≥95% | I107: 让人们100%的满意 | J107: 未达指标值扣分 | K107: % | L107: ≥
E108: 产出指标 | F108: 经济成本指标 | G108: 预算控制数 | H108: ≤100000 | I108: 严格控制其它非项目开支 | J108: 未达指标值扣分 | K108: 元 | L108: ≤
F109: 社会成本指标 | G109: 无 | H109: 无 | I109: 0 | J109: 0 | K109: 0
F110: 生态环境成本指标 | G110: 无 | H110: 无 | I110: 0 | J110: 0 | K110: 0
F111: 质量指标 | G111: 畜禽水产品检测合格率 | H111: ≥98% | I111: 畜禽水产品检测 | J111: 未达指标值扣分 | K111: % | L111: 定量
F112: 时效指标 | G112: 畜禽水产品检测 | H112: 1年 | I112: 2022年1月-12月 | J112: 未达指标值扣分 | K112: 月 | L112: 定性
F113: 数量指标 | G113: “瘦肉精”抽检率 | H113: ≥98% | I113: “瘦肉精”检出率 | J113: 未达指标值扣分 | K113: % | L113: ≥
E114: 效益指标 | F114: 生态效益指标 | G114: 畜禽水产品检测防止病猪肉入市 | H114: ≥96% | I114: 让人们的能吃到放心菜、放心肉 | J114: 未达指标值扣分 | K114: % | L114: 定量
F115: 经济效益指标 | G115: 无 | H115: 无 | I115: 无 | J115: 无
F116: 社会效益指标 | G116: 畜禽水产品检测使群众吃得放心 | H116: ≥96% | I116: 确保肉食安全供给、保障消费者的消费安全 | J116: 未达指标值扣分 | K116: % | L116: 定量

Sheet 23整体支出绩效目标表
A1: 整体支出绩效目标表
A2: 单位：420-岳阳县畜牧水产发展服务中心(汇总） | Q2: 金额单位：万元
A3: 单位编码 | B3: 单位名称 | C3: 年度预算申请 | J3: 整体绩效目标 | K3: 部门整体支出年度绩效目标
C4: 资金总额 | D4: 按收入性质分 | H4: 按支出性质分
D5: 一般公共预算 | E5: 政府性基金拨款 | F5: 财政专户管理资金 | G5: 其他资金 | H5: 基本支出 | I5: 项目支出 | K5: 一级指标 | L5: 二级指标 | M5: 三级指标 | N5: 指标值类型 | O5: 指标值 | P5: 度量单位 | Q5: 指标值说明 | R5: 备注
A6: 420001 | B6: 岳阳县畜牧水产发展服务中心 | C6: 398.94 | D6: 398.94 | H6: 182.94 | I6: 216.00 | J6: 目标1：全面完成全年职能工作任务和县委县政府分配的其他各项工作任务，促进全县养殖业绿色健康发展 目标2：全县养殖业生产社会效益，经济效益，生态效益，可持续影响和社会公众满意度达到预期目标 | K6: 产出指标 | L6: 重点工作任务完成 | M6: 三公经费控制率 | N6: = | O6: 100 | P6: % | Q6: “三公经费”控制率=本年度“三公经费”实际支出数/“三公经费”预算数*100%
M7: 财政供养人员控制率 | N7: = | O7: 100 | P7: % | Q7: （在职人员数/编制数）*100%
L8: 履职目标实现 | M8: 提升畜禽健康养殖水平 | N8: = | O8: 98 | P8: % | Q8: 全县养殖业生产社会效益，经济效益，生态效益达标预期目标
K9: 效益指标 | L9: 履职效益 | M9: 养殖废弃物对环境无污染 | N9: = | O9: 98 | P9: % | Q9: 全县养殖业生产社会效益，经济效益，生态效益达到预期目标
M10: 促进全县养殖业经济增收，强力推动我县县域经济发展 | N10: = | O10: 98 | P10: % | Q10: 全县养殖业生产社会效益，经济效益，生态效益达到预期目标
M11: 无重大动物疫病及动物产品视频质量安全隐患 | N11: = | O11: 98 | P11: % | Q11: 全县养殖业生产社会效益，经济效益，生态效益达到预期目标
L12: 满意度 | M12: 社会公众或服务对象满意度 | N12: ≥ | O12: 98 | P12: % | Q12: 社会公众满意度达到预期目标
A13: 420002 | B13: 岳阳县动物疫病预防控制中心 | C13: 50.52 | D13: 50.52 | H13: 50.52 | K13: 产出指标 | L13: 重点工作任务完成
L14: 履职目标实现
K15: 效益指标 | L15: 履职效益
L16: 满意度
A17: 420003 | B17: 岳阳县动物卫生监督所 | C17: 113.13 | D17: 113.13 | H17: 78.13 | I17: 35.00 | J17: 目标1：全面完成全年职责任务和县委县政府分配的各项工作任务 目标2：社会效益，经济效益，生态效益，可持续影响和社会公众满意度达到预期目标 | K17: 产出指标 | L17: 重点工作任务完成 | M17: 三公经费控制率 | N17: = | O17: 100 | P17: % | Q17: “三公经费”控制率=本年度“三公经费”实际支出数/“三公经费”预算数*100%
M18: 财政供养人员控制率 | N18: = | O18: 100 | P18: % | Q18: （在职人员数/编制数）*100%
L19: 履职目标实现 | M19: 无重大动物疫病及动物产品视频质量安全隐患 | N19: = | O19: 98 | P19: % | Q19: 社会效益，经济效益，生态效益达到预期目标
K20: 效益指标 | L20: 履职效益 | M20: 促进经济增收，强力推进我县县域经济发展 | N20: = | O20: 98 | P20: % | Q20: 社会效益，经济效益，生态效益达到预期目标
L21: 满意度 | M21: 社会公众或服务对象满意度 | N21: ≥ | O21: 98 | P21: % | Q21: 社会公众满意度达到预期目标
A22: 420004 | B22: 中洲渔场 | C22: 105.40 | D22: 105.40 | I22: 105.40 | J22: 目标1：进一步加强天然水域禁投资管理和精养渔池养殖管理，确保生态环保养殖要求落到实处 目标2：进一步改善全场道路交通条件，力争利用移民项目硬化道路 目标3：进一步加强党组织建设，加强财务管理 | K22: 产出指标 | L22: 重点工作任务完成 | M22: 加强天然水域禁投管理和精养渔池养殖管理 | N22: = | O22: 98 | P22: % | Q22: 全县水产业社会效益，经济效益，生态效益，可持续影响和社会公众满意度达到预期目标
L23: 履职目标实现 | M23: 加强天然水域禁投管理和精养渔池养殖管理 | N23: = | O23: 98 | P23: % | Q23: 全县水产业社会效益，经济效益，生态效益，可持续影响和社会公众满意度达到预期目标
K24: 效益指标 | L24: 履职效益 | M24: 确保生态环保养殖要求落到实处 | N24: = | O24: 98 | P24: % | Q24: 全县水产业社会效益，经济效益，生态效益，可持续影响和社会公众满意度达到预期目标
L25: 满意度 | M25: 社会公众或服务对象满意度 | N25: ≥ | O25: 98 | P25: % | Q25: 社会公众满意度达到预期目标
A26: 420005 | B26: 岳阳县渔政监督管理站 | C26: 60.41 | D26: 60.41 | H26: 60.41 | J26: 全面完成全年职能工作任务和县委县政府及局机关分配的其他各项工作任务，促进全县养殖业、渔业绿色健康发展 | K26: 产出指标 | L26: 重点工作任务完成 | M26: 三公经费控制率 | N26: = | O26: 100 | P26: % | Q26: ”三公经费”控制率=（“三公经费"实际支出数/三公经费”预算安排数）*100%
L27: 履职目标实现 | M27: 渔业健康有序发展 | N27: 定性 | O27: 公开 | Q27: 达到预期目标
K28: 效益指标 | L28: 履职效益 | M28: 促进全县经济增收，推动我县县域经济发展 | N28: 定性 | O28: 规范 | Q28: 达到预期目标
L29: 满意度 | M29: 社会公众或服务对象满意度 | N29: ≥ | O29: 98 | P29: % | Q29: 达到预期目标
A30: 420006 | B30: 岳阳县畜禽良种繁殖场 | C30: 48.00 | D30: 48.00 | I30: 48.00 | J30: 目标1：开展主要畜禽类优质高效遗传控制和改良研究，研究开发畜禽育种技术 目标2：建立科学的畜禽良种繁育体系，推广应用冷精配种技术和研究开发胚胎繁殖技术 目标2：研究现代生物技术畜禽选育上的应用，促进畜禽生产、性能测定、遗传评估的规范 | K30: 产出指标 | L30: 重点工作任务完成 | M30: 财政供养人员控制率 | N30: = | O30: 100 | P30: % | Q30: （在职人员数/编制数）*100%
M31: 三公经费控制率 | N31: = | O31: 100 | P31: % | Q31: “三公经费”控制率=本年度三公经费“实际支出数“/三公经费”预算数*100%
L32: 履职目标实现 | M32: 建立科学的畜禽良种繁育体系 | N32: = | O32: 98 | P32: % | Q32: 全县畜禽工作生产社会效益，经济效益，生态效益达到预期目标
K33: 效益指标 | L33: 履职效益 | M33: 促进畜禽生产、性能测定、遗传评估的规范 | N33: = | O33: 98 | P33: % | Q33: 全县畜禽工作生产社会效益，经济效益，生态效益达到预期目标
L34: 满意度 | M34: 社会公众或服务对象满意度 | N34: ≥ | O34: 98 | P34: % | Q34: 社会公众满意度达到预期目标
A35: 420007 | B35: 岳阳县养殖技术推广站 | C35: 97.64 | D35: 97.64 | H35: 97.64 | J35: 全面完成全年职能工作任务和县委县政府及局机关分配的其他各项工作作务 | K35: 产出指标 | L35: 重点工作任务完成 | M35: 三公经费控制率 | N35: = | O35: 98 | P35: % | Q35: “三公经费”控制率=（三公经费“实际支出数/三公经费”预算安排数）*100%
M36: 财政供养人员控制率 | N36: = | O36: 100 | P36: % | Q36: （在职人员编制数/编制数）100%
L37: 履职目标实现 | M37: 进度目标：年底前完成 | N37: 定性 | O37: 年底前完成 | Q37: 2021年完成
K38: 效益指标 | L38: 履职效益 | M38: 促进全县养殖业经济增收、强力推动我县县域经济发展 | N38: 定性 | O38: 真实 | Q38: 达到预期目标
L39: 满意度 | M39: 群众及服务对象满意率高于95% | N39: ≥ | O39: 95 | P39: % | Q39: 达到预期目标
A40: 420008 | B40: 岳阳县畜禽水产品质量安全检验检测中心 | C40: 76.06 | D40: 76.06 | H40: 66.06 | I40: 10.00 | J40: 全面完成全能职能工作任务和局机关分配的其他各项工作任务 | K40: 产出指标 | L40: 重点工作任务完成 | M40: 三 公经费控制率 | N40: = | O40: 98 | P40: % | Q40: “三公经费”控制率=（三公经费“实际支出数/"三公经费”预算安排数“）*100%
L41: 履职目标实现 | M41: 提升畜禽健康养殖水平 | N41: = | O41: 100 | P41: % | Q41: 达到预期目标
K42: 效益指标 | L42: 履职效益 | M42: 养殖废弃物对环境无污染 | N42: = | O42: 100 | P42: % | Q42: 达到预期目标
L43: 满意度 | M43: 群众满意度 | N43: ≥ | O43: 95 | P43: % | Q43: 达到预期目标
